Workbook

Sheet quisner
A1: KUESIONER SURVEI KEPUASAN MASYARAKAT (SKM)
A3: PADA UNIT LAYANAN KELURAHAN PANGONGANGAN KOTA MADIUN
A7: Tanggal Survei : | H7: Jam Survei : | J7: 08.00 – 12.00*
J9: 13.00 – 17.00*
A11: PROFIL
A13: Nama Responden : | E13: ...........................................................
A15: Jenis Kelamin : L P Usia : .......tahun
A17: Pendidikan : | D17: SD SMP SMA S1 S2 S3
A19: Pekerjaan : | D19: PNS TNI POLRI SWASTA WIRAUSAHA
A21: LAINNYA................................(sebutkan)
A23: Jenis Layanan yang diterima : ........................
F24: (misal : KTP, Akta, Sertifikat,Poli Umum, dll)
A26: II. PENDAPAT RESPONDEN TENTANG PELAYANAN
A27: (Lingkari kode huruf sesuai jawaban masyarakat/responden)
E29: P *) | K29: P *)
A30: 1. Bagaimana pendapat Saudara tentang kesesuaian persyaratan pelayanan dengan jenis pelayanannya. | G30: 6. Bagaimana pendapat Saudara tentang kompetensi/ kemampuan petugas dalam pelayanan.
A31: a. Tidak sesuai. | E31: 1 | G31: a. Tidak kompeten | K31: 1
A32: b. Kurang sesuai. | E32: 2 | G32: b. Kurang kompeten | K32: 2
A33: c. Sesuai. | E33: 3 | G33: c. Kompeten | K33: 3
A34: d. Sangat sesuai. | E34: 4 | G34: d. Sangat kompeten | K34: 4
A36: 2. Bagaimana pemahaman Saudara tentang kemudahan prosedur pelayanan di unit ini. | G36: 7.Bagamana pendapat saudara perilaku petugas dalam pelayanan terkait kesopanan dan keramahan
A37: a. Tidak mudah. | E37: 1 | G37: a. Tidak sopan dan ramah | K37: 1
A38: b. Kurang mudah. | E38: 2 | G38: b. Kurang sopan dan ramah | K38: 2
A39: c. Mudah. | E39: 3 | G39: c. Sopan dan ramah | K39: 3
A40: d. Sangat mudah. | E40: 4 | G40: d. Sangat sopan dan ramah | K40: 4
A42: 3. Bagaimana pendapat Saudara tentang kecepatan waktu dalam memberikan pelayanan. | G42: 8. Bagaimana pendapat Saudara tentang kualitas sarana dan prasarana
A43: a. Tidak cepat. | E43: 1 | G43: a. Buruk. | K43: 1
A44: b. Kurang cepat. | E44: 2 | G44: b. Cukup. | K44: 2
A45: c. Cepat. | E45: 3 | G45: c. Baik | K45: 3
A46: d. Sangat cepat. | E46: 4 | G46: d. Sangat Baik | K46: 4
A48: 4. Bagaimana pendapat Saudara tentang kewajaran biaya/tarif dalam pelayanan | G48: 9.Bagaimana pendapat Saudara tentang penanganan pengaduan pengguna layanan
A49: a. Sangat mahal | E49: 1 | G49: a. Tidak ada | K49: 1
A50: b. Cukup mahal | E50: 2 | G50: b. Ada tetapi tidak berfungsi | K50: 2
A51: c. Murah | E51: 3 | G51: c. Berfungsi kurang maksimal | K51: 3
A52: d. Gratis | E52: 4 | G52: d. Dikelola dengan baik. | K52: 4
A53: 5. Bagaimana pendapat Saudara tentang kesesuaian produk pelayanan antara yang tercantum dalam standar pelayanan dengan hasil yang diberikan.
A54: a. Tidak sesuai | E54: 1
A55: b. Kurang Sesuai | E55: 2
A56: c. Sesuai | E56: 3
A57: d. Sangat Sesuai | E57: 4

Sheet input
A1: PENGOLAHAN INDEKS KEPUASAN MASYARAKAT PER RESPONDEN | Y1: Pekerjaan | Z1: Pendidikan
A2: DAN PER UNSUR PELAYANAN | Y2: BELUM/TIDAK BEKERJA | Z2: SD
G3: UNIT PELAYANAN | K3: : | L3: Kelurahan Pangongangan | Y3: MENGURUS RUMAH TANGGA | Z3: SMP
G4: ALAMAT | K4: : | L4: Jl.Pandan No.2 Madiun | Y4: PELAJAR/MAHASISWA | Z4: SMA
G5: Tlp/Fax. | K5: : | L5: (0351) 467527 | Y5: PENSIUNAN | Z5: DIPLOMA I / II
Y6: PEGAWAI NEGERI SIPIL (PNS) | Z6: S1
A7: NO. RESP | B7: NAMA | C7: USIA | D7: JENIS KELAMIN | E7: PEKERJAAN | F7: PENDIDIKAN | G7: NILAI UNSUR PELAYANAN | U7: JENIS LAYANAN | Y7: TENTARA NASIONAL INDONESIA (TNI) | Z7: S2
Y8: KEPOLISIAN RI (POLRI) | Z8: S3
G9: U1 | H9: U2 | I9: U3 | J9: U4 | K9: U5 | L9: U6 | M9: U7 | N9: U8 | O9: U9 | P9: U10 | Q9: U11 | R9: U12 | S9: U13 | T9: U14 | Y9: PERDAGANGAN
A10: 1 | B10: =A10+1 -> 2 | C10: =B10+1 -> 3 | D10: =C10+1 -> 4 | E10: 5 | F10: 6 | G10: 7 | H10: 8 | I10: 9 | J10: 10 | K10: 11 | L10: 12 | M10: 13 | N10: 14 | O10: 15 | P10: 16 | Q10: 17 | R10: 18 | S10: 19 | T10: 20 | U10: 21 | Y10: PETANI/PERKEBUNAN
A11: =IF(C11="","",1) -> 1 | B11: WIWIK TRIANA DEWI | C11: 34 | D11: Pr | E11: WIRAUSAHA | F11: SMA | G11: 3 | H11: 3 | I11: 3 | J11: 3 | K11: 3 | L11: 3 | M11: 3 | N11: 3 | O11: 4 | P11: KTP | U11: KTP | Y11: PETERNAK
A12: =IF(C12="","",A11+1) -> 2 | B12: KRISTIAN DETRI A | C12: 45 | D12: Pr | E12: SWASTA | F12: SMA | G12: 4 | H12: 4 | I12: 4 | J12: 4 | K12: 4 | L12: 4 | M12: 4 | N12: 4 | O12: 4 | P12: KETERANGAN AGAMA | U12: KETERANGAN AGAMA | Y12: NELAYAN/PERIKANAN
A13: =IF(C13="","",A12+1) -> 3 | B13: SONY WIDHARTA | C13: 47 | D13: Lk | F13: SMA | G13: 4 | H13: 4 | I13: 4 | J13: 4 | K13: 4 | L13: 4 | M13: 4 | N13: 4 | O13: 4 | P13: MEMBUAT AKTE | U13: MEMBUAT AKTE | Y13: INDUSTRI
A14: 4 | B14: WIJI LESTARI | C14: 41 | D14: Pr | E14: SERABUTAN | F14: SMA | G14: 3 | H14: 3 | I14: 3 | J14: 3 | K14: 3 | L14: 4 | M14: 3 | N14: 3 | O14: 4 | P14: PEMBAYARAN PBB | U14: PEMBAYARAN PBB | Y14: KONSTRUKSI
A15: 5 | B15: YULIATI SARASWATI | C15: 26 | D15: Pr | E15: SERABUTAN | F15: SMA | G15: 3 | H15: 3 | I15: 3 | J15: 4 | K15: 3 | L15: 3 | M15: 3 | N15: 2 | O15: 4 | U15: 0 | Y15: TRANSPORTASI
A16: 6 | B16: VINA BAYU DEWANTO | C16: 35 | D16: Lk | E16: SWASTA | F16: SMA | G16: 4 | H16: 4 | I16: 3 | J16: 4 | K16: 3 | L16: 4 | M16: 4 | N16: 4 | O16: 4 | U16: 0 | Y16: KARYAWAN SWASTA
A17: 7 | B17: GIASTUTI | C17: 58 | D17: Pr | E17: IBU RUMAH TANGGA | F17: SMA | G17: 3 | H17: 3 | I17: 3 | J17: 4 | K17: 3 | L17: 3 | M17: 4 | N17: 4 | O17: 4 | P17: PBB | U17: PBB | Y17: KARYAWAN BUMN
A18: 8 | B18: RULIA W | C18: 49 | D18: Pr | E18: SWASTA | F18: S1 | G18: 3 | H18: 4 | I18: 3 | J18: 4 | K18: 3 | L18: 3 | M18: 4 | N18: 3 | O18: 4 | P18: SERTIFIKAT | U18: SERTIFIKAT | Y18: KARYAWAN BUMD
A19: 9 | B19: WAHYU SETYAWATI | C19: 37 | D19: Pr | E19: WIRAUSAHA | F19: S1 | G19: 3 | H19: 3 | I19: 3 | J19: 4 | K19: 3 | L19: 3 | M19: 3 | N19: 4 | O19: 4 | P19: SURAT KETERANGAN | U19: SURAT KETERANGAN | Y19: KARYAWAN HONORER
A20: 10 | B20: EKO NOVIANTORO | C20: 50 | D20: Lk | E20: PNS | F20: S1 | G20: 4 | H20: 4 | I20: 3 | J20: 4 | K20: 3 | L20: 3 | M20: 4 | N20: 3 | O20: 4 | P20: PERUBAHAN KK | U20: PERUBAHAN KK | Y20: BURUH HARIAN LEPAS
A21: 11 | B21: SUGIARTI | C21: 41 | D21: Pr | E21: SWASTA | F21: SMP | G21: 3 | H21: 3 | I21: 3 | J21: 4 | K21: 3 | L21: 3 | M21: 3 | N21: 3 | O21: 4 | U21: 0 | Y21: BURUH TANI/PERKEBUNAN
A22: 12 | B22: ENDANG SRI REJEKI | C22: 50 | D22: Pr | E22: GURU PAUD | F22: SMA | G22: 3 | H22: 3 | I22: 4 | J22: 4 | K22: 4 | L22: 4 | M22: 3 | N22: 4 | O22: 4 | P22: SURAT KETERANGAN | U22: SURAT KETERANGAN | Y22: BURUH NELAYAN/PERIKANAN
A23: 13 | B23: SULARSO | C23: 47 | D23: Lk | F23: SMA | G23: 3 | H23: 3 | I23: 3 | J23: 4 | K23: 3 | L23: 3 | M23: 3 | N23: 3 | O23: 4 | U23: 0 | Y23: BURUH PETERNAKAN
A24: 14 | B24: ENDANG FITRIASTUTI | C24: 43 | D24: Pr | E24: IRT | F24: SMA | G24: 4 | H24: 4 | I24: 4 | J24: 4 | K24: 3 | L24: 3 | M24: 4 | N24: 4 | O24: 4 | U24: 0 | Y24: PEMBANTU RUMAH TANGGA
A25: 15 | B25: YOLLANDA | C25: 21 | D25: Pr | E25: MAHASISWA | F25: SMA | G25: 3 | H25: 3 | I25: 3 | J25: 4 | K25: 3 | L25: 3 | M25: 3 | N25: 2 | O25: 4 | P25: TAMBAH KK | U25: TAMBAH KK | Y25: TUKANG CUKUR
A26: 16 | B26: DANI KUSUMA | C26: 29 | D26: Pr | E26: SWASTA | F26: S1 | G26: 4 | H26: 4 | I26: 3 | J26: 4 | K26: 4 | L26: 4 | M26: 4 | N26: 4 | O26: 4 | P26: SURAT DOMISILI | U26: SURAT DOMISILI | Y26: TUKANG LISTRIK
A27: 17 | B27: AGUS KUNWAHJUDI | C27: 51 | D27: Lk | E27: WIRAUSAHA | F27: SMA | G27: 3 | H27: 3 | I27: 3 | J27: 4 | K27: 3 | L27: 4 | M27: 3 | N27: 3 | O27: 4 | U27: 0 | Y27: TUKANG BATU
A28: 18 | B28: M FURQON AW | C28: 47 | D28: Lk | E28: SWASTA | F28: SMA | G28: 4 | H28: 4 | I28: 3 | J28: 4 | K28: 3 | L28: 3 | M28: 3 | N28: 3 | O28: 4 | P28: SURAT KET. USAHA | U28: SURAT KET. USAHA | Y28: TUKANG KAYU
A29: 19 | B29: RUDI IRJAYANTO | C29: 33 | D29: Lk | E29: SWASTA | F29: SMA | G29: 3 | H29: 3 | I29: 3 | J29: 4 | K29: 3 | L29: 3 | M29: 3 | N29: 3 | O29: 4 | U29: 0 | Y29: TUKANG SOL SEPATU
A30: 20 | B30: SUTRISNO | C30: 51 | D30: Lk | E30: SWASTA | F30: SD | G30: 3 | H30: 3 | I30: 3 | J30: 4 | K30: 3 | L30: 3 | M30: 3 | N30: 3 | O30: 4 | P30: BPJS KIS | U30: BPJS KIS | Y30: TUKANG LAS/PANDAI BESI
A31: 21 | B31: HER SRI WULANDARI | C31: 42 | D31: Pr | E31: WIRAUSAHA | F31: S1 | G31: 4 | H31: 4 | I31: 3 | J31: 4 | K31: 4 | L31: 3 | M31: 4 | N31: 3 | O31: 4 | P31: SKD | U31: SKD | Y31: TUKANG JAHIT
A32: 22 | B32: DHEA GITA PRAJNA P | C32: 19 | D32: Pr | E32: MAHASISWA | F32: S1 | G32: 3 | H32: 3 | I32: 3 | J32: 3 | K32: 3 | L32: 3 | M32: 4 | N32: 3 | O32: 4 | P32: KTP DAN KK | U32: KTP DAN KK | Y32: TUKANG GIGI
Y33: PENATA RIAS
P34: SSSSSS | Y34: PENATA BUSANA
P35: MMMM | Y35: PENATA RAMBUT
Y36: MEKANIK
Y37: SENIMAN
Y38: TABIB
Y39: PARAJI
Y40: PERANCANG BUSANA
Y41: PENTERJEMAH
Y42: IMAM MASJID
Y43: PENDETA
Y44: PASTOR
Y45: WARTAWAN
Y46: USTADZ/MUBALIGH
Y47: JURU MASAK
Y48: PROMOTOR ACARA
Y49: ANGGOTA DPR-RI
Y50: ANGGOTA DPD
Y51: ANGGOTA BPK
Y52: PRESIDEN
Y53: WAKIL PRESIDEN
Y54: ANGGOTA MAHKAMAH KONSTITUSI
Y55: ANGGOTA KABINET KEMENTERIAN
Y56: DUTA BESAR
Y57: GUBERNUR
Y58: WAKIL GUBERNUR
Y59: BUPATI
Y60: WAKIL BUPATI
Y61: WALIKOTA
Y62: WAKIL WALIKOTA
Y63: ANGGOTA DPRD PROVINSI
Y64: ANGGOTA DPRD KABUPATEN/KOTA
Y65: DOSEN
Y66: GURU
Y67: PILOT
Y68: PENGACARA
Y69: NOTARIS
Y70: ARSITEK
Y71: AKUNTAN
Y72: KONSULTAN
Y73: DOKTER
Y74: BIDAN
Y75: PERAWAT
Y76: APOTEKER
A77: =IF(C77="","",A76+1) ->  | Y77: PSIKIATER/PSIKOLOG
Y78: PENYIAR TELEVISI
Y79: PENYIAR RADIO
Y80: PELAUT
Y81: PENELITI
Y82: SOPIR
Y83: PIALANG
Y84: PARANORMAL
Y85: PEDAGANG
Y86: PERANGKAT DESA
Y87: KEPALA DESA
Y88: BIARAWATI
Y89: WIRASWASTA
A141: =IF(C141="","",A140+1) -> 
A161: Jumlah data terisi : | G161: =COUNTIF(G11:G160,">0") -> 22 | H161: 22 | I161: 22 | J161: 22 | K161: 22 | L161: 22 | M161: 22 | N161: 22 | O161: 22 | P161: =(SUM(P11:P160))/COUNT(P11:P160) -> 
A162: Rata-rata | G162: =IF(G161>0,(SUMIF(G11:G160,">0")/G161),0) -> 3.363636364 | H162: 3.409090909 | I162: 3.181818182 | J162: 3.863636364 | K162: 3.227272727 | L162: 3.318181818 | M162: 3.454545455 | N162: 3.272727273 | O162: 4 | P162: =P161*0.071 ->  | U162: *)
U163: =SUM(G162:O162) -> 31.09090909
U164: **)
A165: IKM Unit pelayanan | U165: =U163*25 -> 777.2727273
A167: Keterangan : | H167: No. | I167: UNSUR PELAYANAN | N167: NILAI RATA-RATA | U167: INDEX
A168: - U1 s.d. U14 | C168: = Unsur-Unsur pelayanan | H168: U1 | I168: Persyaratan | N168: =G162 -> 3.363636364 | U168: =N168/4*100 -> 84.09090909
A169: - NRR | C169: = Nilai rata-rata | H169: U2 | I169: Prosedur | N169: =H162 -> 3.409090909 | U169: =N169/4*100 -> 85.22727273
A170: - IKM | C170: = Indeks Kepuasan Masyarakat | H170: U3 | I170: Waktu pelayanan | N170: =I162 -> 3.181818182 | U170: 79.54545455
A171: - *) | C171: = Jumlah NRR IKM tertimbang | H171: U4 | I171: Biaya / tarif | N171: =J162 -> 3.863636364 | U171: 96.59090909
A172: -**) | C172: = Jumlah NRR Tertimbang x 25 | H172: U5 | I172: Produk layanan | N172: =K162 -> 3.227272727 | U172: 80.68181818
A173: NRR Per Unsur | C173: = Jumlah nilai per unsur dibagi | H173: U6 | I173: Kompetensi pelaksana | N173: =L162 -> 3.318181818 | U173: 82.95454545
C174: Jumlah kuesioner yang terisi | H174: U7 | I174: Perilaku pelaksana | N174: =M162 -> 3.454545455 | U174: 86.36363636
A175: NRR tertimbang per unsur | C175: = NRR per unsur x 0,111 | H175: U8 | I175: Penanganan Pengaduan, Saran & Masukan | N175: =N162 -> 3.272727273 | U175: 81.81818182
H176: U9 | I176: Sarana dan Prasarana | N176: =O162 -> 4 | U176: =N176/4*100 -> 100
H177: Jumlah Unsur Digunakan : | N177: =COUNTIF(N168:N176,">0") -> 9
A178: IKM UNIT PELAYANAN : | E178: =U178 -> 86.36363636 | H178: Total | N178: =SUM(N168:N176)/N177 -> 3.454545455 | U178: =N178/4*100 -> 86.36363636
A179: Mutu Pelayanan :
A180: A (Sangat Baik) | E180: : 88,31 - 100,00
A181: B (Baik) | E181: : 76,61 - 88,30
A182: C (Kurang Baik) | E182: : 65,00 - 76,61
A183: D (Tidak Baik) | E183: : 25,00 - 64,99

Sheet data
A1: No | B1: Nama | C1: Usia | D1: Jenis Kelamin | E1: Pendidikan | F1: Pekerjaan | G1: Unsur 1 : Persyaratan Pelayanan (A) | S1: Unsur 2 : Sistem, Mekanisme, Prosedur Pelayanan (B) | AE1: Unsur 3 : Waktu Pelayanan © | AQ1: Unsur 4 : Biaya/ Tarif (D) | BC1: Unsur 5 : Produk/ Hasil Layanan | BO1: Unusr 6 : Kompetensi Pelaksana (F) | CA1: Unsur 7 : Perilaku Pelaksana (G) | CM1: Unsur 8 : Penanganan Keluhan/ Saran (H) | CY1: Unsur 9 : Sarana dan Prasarana (I) | DK1: Keluhan | DL1: Saran
G2: A1 | H2: A2 | I2: A3 | J2: A4 | K2: A5 | L2: A6 | M2: A7 | N2: A8 | O2: A9 | P2: A10 | Q2: Juml. Item | R2: Rata-rata A | S2: B1 | T2: B2 | U2: B3 | V2: B4 | W2: B5 | X2: B6 | Y2: B7 | Z2: B8 | AA2: B9 | AB2: B10 | AC2: Juml. Item | AD2: Rata-rata B | AE2: C1 | AF2: C2 | AG2: C3 | AH2: C4 | AI2: C5 | AJ2: C6 | AK2: C7 | AL2: C8 | AM2: C9 | AN2: C10 | AO2: Juml. Item | AP2: Rata-rata C | AQ2: D1 | AR2: D2 | AS2: D3 | AT2: D4 | AU2: D5 | AV2: D6 | AW2: D7 | AX2: D8 | AY2: D9 | AZ2: D10 | BA2: Juml. Item | BB2: Rata-rata D | BC2: E1 | BD2: E2 | BE2: E3 | BF2: E4 | BG2: E5 | BH2: E6 | BI2: E7 | BJ2: E8 | BK2: E9 | BL2: E10 | BM2: Juml. Item | BN2: Rata-rata E | BO2: F1 | BP2: F2 | BQ2: F3 | BR2: F4 | BS2: F5 | BT2: F6 | BU2: F7 | BV2: F8 | BW2: F9 | BX2: F10 | BY2: Juml. Item | BZ2: Rata-rata F | CA2: G1 | CB2: G2 | CC2: G3 | CD2: G4 | CE2: G5 | CF2: G6 | CG2: G7 | CH2: G8 | CI2: G9 | CJ2: G10 | CK2: Juml. Item | CL2: Rata-rata G | CM2: H1 | CN2: H2 | CO2: H3 | CP2: H4 | CQ2: H5 | CR2: H6 | CS2: H7 | CT2: H8 | CU2: H9 | CV2: H10 | CW2: Juml. Item | CX2: Rata-rata H | CY2: I1 | CZ2: I2 | DA2: I3 | DB2: I4 | DC2: I5 | DD2: I6 | DE2: I7 | DF2: I8 | DG2: I9 | DH2: I10 | DI2: Juml. Item | DJ2: Rata-rata I
A3: 1 | G3: 4 | Q3: =COUNTIF(G3:P3,">0") -> 1 | R3: =IF(Q3>0,(SUM(G3:P3)/Q3),0) -> 4 | S3: 4 | AC3: =COUNTIF(S3:AB3,">0") -> 1 | AD3: =IF(AC3>0,(SUM(S3:AB3)/AC3),0) -> 4 | AE3: 3 | AO3: =COUNTIF(AE3:AN3,">0") -> 1 | AP3: =IF(AO3>0,(SUM(AE3:AN3)/AO3),0) -> 3 | AQ3: 4 | BA3: =COUNTIF(AQ3:AZ3,">0") -> 1 | BB3: =IF(BA3>0,(SUM(AQ3:AZ3)/BA3),0) -> 4 | BC3: 3 | BM3: =COUNTIF(BC3:BL3,">0") -> 1 | BN3: =IF(BM3>0,(SUM(BC3:BL3)/BM3),0) -> 3 | BO3: 4 | BY3: =COUNTIF(BO3:BX3,">0") -> 1 | BZ3: =IF(BY3>0,(SUM(BO3:BX3)/BY3),0) -> 4 | CA3: 3 | CK3: =COUNTIF(CA3:CJ3,">0") -> 1 | CL3: =IF(CK3>0,(SUM(CA3:CJ3)/CK3),0) -> 3 | CM3: 4 | CW3: =COUNTIF(CM3:CV3,">0") -> 1 | CX3: =IF(CW3>0,(SUM(CM3:CV3)/CW3),0) -> 4 | CY3: 3 | DI3: =COUNTIF(CY3:DH3,">0") -> 1 | DJ3: =IF(DI3>0,(SUM(CY3:DH3)/DI3),0) -> 3
A4: 2 | Q4: =COUNTIF(G4:P4,">0") -> 0 | R4: =IF(Q4>0,(SUM(G4:P4)/Q4),0) -> 0 | AC4: =COUNTIF(S4:AB4,">0") -> 0 | AD4: =IF(AC4>0,(SUM(S4:AB4)/AC4),0) -> 0 | AO4: =COUNTIF(AE4:AN4,">0") -> 0 | AP4: =IF(AO4>0,(SUM(AE4:AN4)/AO4),0) -> 0 | BA4: =COUNTIF(AQ4:AZ4,">0") -> 0 | BB4: =IF(BA4>0,(SUM(AQ4:AZ4)/BA4),0) -> 0 | BM4: =COUNTIF(BC4:BL4,">0") -> 0 | BN4: =IF(BM4>0,(SUM(BC4:BL4)/BM4),0) -> 0 | BY4: =COUNTIF(BO4:BX4,">0") -> 0 | BZ4: =IF(BY4>0,(SUM(BO4:BX4)/BY4),0) -> 0 | CK4: =COUNTIF(CA4:CJ4,">0") -> 0 | CL4: =IF(CK4>0,(SUM(CA4:CJ4)/CK4),0) -> 0 | CW4: =COUNTIF(CM4:CV4,">0") -> 0 | CX4: =IF(CW4>0,(SUM(CM4:CV4)/CW4),0) -> 0 | DI4: =COUNTIF(CY4:DH4,">0") -> 0 | DJ4: =IF(DI4>0,(SUM(CY4:DH4)/DI4),0) -> 0
A5: 3 | Q5: 0 | R5: 0 | AC5: 0 | AD5: 0 | AO5: 0 | AP5: 0 | BA5: 0 | BB5: 0 | BM5: 0 | BN5: 0 | BY5: 0 | BZ5: 0 | CK5: 0 | CL5: 0 | CW5: 0 | CX5: 0 | DI5: 0 | DJ5: 0
A6: 4 | Q6: 0 | R6: 0 | AC6: 0 | AD6: 0 | AO6: 0 | AP6: 0 | BA6: 0 | BB6: 0 | BM6: 0 | BN6: 0 | BY6: 0 | BZ6: 0 | CK6: 0 | CL6: 0 | CW6: 0 | CX6: 0 | DI6: 0 | DJ6: 0
A7: 5 | Q7: 0 | R7: 0 | AC7: 0 | AD7: 0 | AO7: 0 | AP7: 0 | BA7: 0 | BB7: 0 | BM7: 0 | BN7: 0 | BY7: 0 | BZ7: 0 | CK7: 0 | CL7: 0 | CW7: 0 | CX7: 0 | DI7: 0 | DJ7: 0
A8: 6 | Q8: 0 | R8: 0 | AC8: 0 | AD8: 0 | AO8: 0 | AP8: 0 | BA8: 0 | BB8: 0 | BM8: 0 | BN8: 0 | BY8: 0 | BZ8: 0 | CK8: 0 | CL8: 0 | CW8: 0 | CX8: 0 | DI8: 0 | DJ8: 0
A9: 7 | Q9: 0 | R9: 0 | AC9: 0 | AD9: 0 | AO9: 0 | AP9: 0 | BA9: 0 | BB9: 0 | BM9: 0 | BN9: 0 | BY9: 0 | BZ9: 0 | CK9: 0 | CL9: 0 | CW9: 0 | CX9: 0 | DI9: 0 | DJ9: 0
A10: 8 | Q10: 0 | R10: 0 | AC10: 0 | AD10: 0 | AO10: 0 | AP10: 0 | BA10: 0 | BB10: 0 | BM10: 0 | BN10: 0 | BY10: 0 | BZ10: 0 | CK10: 0 | CL10: 0 | CW10: 0 | CX10: 0 | DI10: 0 | DJ10: 0
A11: 9 | Q11: 0 | R11: 0 | AC11: 0 | AD11: 0 | AO11: 0 | AP11: 0 | BA11: 0 | BB11: 0 | BM11: 0 | BN11: 0 | BY11: 0 | BZ11: 0 | CK11: 0 | CL11: 0 | CW11: 0 | CX11: 0 | DI11: 0 | DJ11: 0
A12: 10 | Q12: 0 | R12: 0 | AC12: 0 | AD12: 0 | AO12: 0 | AP12: 0 | BA12: 0 | BB12: 0 | BM12: 0 | BN12: 0 | BY12: 0 | BZ12: 0 | CK12: 0 | CL12: 0 | CW12: 0 | CX12: 0 | DI12: 0 | DJ12: 0
A13: 11 | Q13: 0 | R13: 0 | AC13: 0 | AD13: 0 | AO13: 0 | AP13: 0 | BA13: 0 | BB13: 0 | BM13: 0 | BN13: 0 | BY13: 0 | BZ13: 0 | CK13: 0 | CL13: 0 | CW13: 0 | CX13: 0 | DI13: 0 | DJ13: 0
A14: 12 | Q14: 0 | R14: 0 | AC14: 0 | AD14: 0 | AO14: 0 | AP14: 0 | BA14: 0 | BB14: 0 | BM14: 0 | BN14: 0 | BY14: 0 | BZ14: 0 | CK14: 0 | CL14: 0 | CW14: 0 | CX14: 0 | DI14: 0 | DJ14: 0
A15: 13 | Q15: 0 | R15: 0 | AC15: 0 | AD15: 0 | AO15: 0 | AP15: 0 | BA15: 0 | BB15: 0 | BM15: 0 | BN15: 0 | BY15: 0 | BZ15: 0 | CK15: 0 | CL15: 0 | CW15: 0 | CX15: 0 | DI15: 0 | DJ15: 0
A16: 14 | Q16: 0 | R16: 0 | AC16: 0 | AD16: 0 | AO16: 0 | AP16: 0 | BA16: 0 | BB16: 0 | BM16: 0 | BN16: 0 | BY16: 0 | BZ16: 0 | CK16: 0 | CL16: 0 | CW16: 0 | CX16: 0 | DI16: 0 | DJ16: 0
A17: 15 | Q17: 0 | R17: 0 | AC17: 0 | AD17: 0 | AO17: 0 | AP17: 0 | BA17: 0 | BB17: 0 | BM17: 0 | BN17: 0 | BY17: 0 | BZ17: 0 | CK17: 0 | CL17: 0 | CW17: 0 | CX17: 0 | DI17: 0 | DJ17: 0
A18: 16 | Q18: 0 | R18: 0 | AC18: 0 | AD18: 0 | AO18: 0 | AP18: 0 | BA18: 0 | BB18: 0 | BM18: 0 | BN18: 0 | BY18: 0 | BZ18: 0 | CK18: 0 | CL18: 0 | CW18: 0 | CX18: 0 | DI18: 0 | DJ18: 0
A19: 17 | Q19: 0 | R19: 0 | AC19: 0 | AD19: 0 | AO19: 0 | AP19: 0 | BA19: 0 | BB19: 0 | BM19: 0 | BN19: 0 | BY19: 0 | BZ19: 0 | CK19: 0 | CL19: 0 | CW19: 0 | CX19: 0 | DI19: 0 | DJ19: 0
A20: 18 | Q20: 0 | R20: 0 | AC20: 0 | AD20: 0 | AO20: 0 | AP20: 0 | BA20: 0 | BB20: 0 | BM20: 0 | BN20: 0 | BY20: 0 | BZ20: 0 | CK20: 0 | CL20: 0 | CW20: 0 | CX20: 0 | DI20: 0 | DJ20: 0
A21: 19 | Q21: 0 | R21: 0 | AC21: 0 | AD21: 0 | AO21: 0 | AP21: 0 | BA21: 0 | BB21: 0 | BM21: 0 | BN21: 0 | BY21: 0 | BZ21: 0 | CK21: 0 | CL21: 0 | CW21: 0 | CX21: 0 | DI21: 0 | DJ21: 0
A22: 20 | Q22: 0 | R22: 0 | AC22: 0 | AD22: 0 | AO22: 0 | AP22: 0 | BA22: 0 | BB22: 0 | BM22: 0 | BN22: 0 | BY22: 0 | BZ22: 0 | CK22: 0 | CL22: 0 | CW22: 0 | CX22: 0 | DI22: 0 | DJ22: 0
A23: 21 | Q23: 0 | R23: 0 | AC23: 0 | AD23: 0 | AO23: 0 | AP23: 0 | BA23: 0 | BB23: 0 | BM23: 0 | BN23: 0 | BY23: 0 | BZ23: 0 | CK23: 0 | CL23: 0 | CW23: 0 | CX23: 0 | DI23: 0 | DJ23: 0
A24: 22 | Q24: 0 | R24: 0 | AC24: 0 | AD24: 0 | AO24: 0 | AP24: 0 | BA24: 0 | BB24: 0 | BM24: 0 | BN24: 0 | BY24: 0 | BZ24: 0 | CK24: 0 | CL24: 0 | CW24: 0 | CX24: 0 | DI24: 0 | DJ24: 0
A25: 23 | Q25: 0 | R25: 0 | AC25: 0 | AD25: 0 | AO25: 0 | AP25: 0 | BA25: 0 | BB25: 0 | BM25: 0 | BN25: 0 | BY25: 0 | BZ25: 0 | CK25: 0 | CL25: 0 | CW25: 0 | CX25: 0 | DI25: 0 | DJ25: 0
A26: 24 | Q26: 0 | R26: 0 | AC26: 0 | AD26: 0 | AO26: 0 | AP26: 0 | BA26: 0 | BB26: 0 | BM26: 0 | BN26: 0 | BY26: 0 | BZ26: 0 | CK26: 0 | CL26: 0 | CW26: 0 | CX26: 0 | DI26: 0 | DJ26: 0
A27: 25 | Q27: 0 | R27: 0 | AC27: 0 | AD27: 0 | AO27: 0 | AP27: 0 | BA27: 0 | BB27: 0 | BM27: 0 | BN27: 0 | BY27: 0 | BZ27: 0 | CK27: 0 | CL27: 0 | CW27: 0 | CX27: 0 | DI27: 0 | DJ27: 0
A28: 26 | Q28: 0 | R28: 0 | AC28: 0 | AD28: 0 | AO28: 0 | AP28: 0 | BA28: 0 | BB28: 0 | BM28: 0 | BN28: 0 | BY28: 0 | BZ28: 0 | CK28: 0 | CL28: 0 | CW28: 0 | CX28: 0 | DI28: 0 | DJ28: 0
A29: 27 | Q29: 0 | R29: 0 | AC29: 0 | AD29: 0 | AO29: 0 | AP29: 0 | BA29: 0 | BB29: 0 | BM29: 0 | BN29: 0 | BY29: 0 | BZ29: 0 | CK29: 0 | CL29: 0 | CW29: 0 | CX29: 0 | DI29: 0 | DJ29: 0
A30: 28 | Q30: 0 | R30: 0 | AC30: 0 | AD30: 0 | AO30: 0 | AP30: 0 | BA30: 0 | BB30: 0 | BM30: 0 | BN30: 0 | BY30: 0 | BZ30: 0 | CK30: 0 | CL30: 0 | CW30: 0 | CX30: 0 | DI30: 0 | DJ30: 0
A31: 29 | Q31: 0 | R31: 0 | AC31: 0 | AD31: 0 | AO31: 0 | AP31: 0 | BA31: 0 | BB31: 0 | BM31: 0 | BN31: 0 | BY31: 0 | BZ31: 0 | CK31: 0 | CL31: 0 | CW31: 0 | CX31: 0 | DI31: 0 | DJ31: 0
A32: 30 | Q32: 0 | R32: 0 | AC32: 0 | AD32: 0 | AO32: 0 | AP32: 0 | BA32: 0 | BB32: 0 | BM32: 0 | BN32: 0 | BY32: 0 | BZ32: 0 | CK32: 0 | CL32: 0 | CW32: 0 | CX32: 0 | DI32: 0 | DJ32: 0
A33: 31 | Q33: 0 | R33: 0 | AC33: 0 | AD33: 0 | AO33: 0 | AP33: 0 | BA33: 0 | BB33: 0 | BM33: 0 | BN33: 0 | BY33: 0 | BZ33: 0 | CK33: 0 | CL33: 0 | CW33: 0 | CX33: 0 | DI33: 0 | DJ33: 0
A34: 32 | Q34: 0 | R34: 0 | AC34: 0 | AD34: 0 | AO34: 0 | AP34: 0 | BA34: 0 | BB34: 0 | BM34: 0 | BN34: 0 | BY34: 0 | BZ34: 0 | CK34: 0 | CL34: 0 | CW34: 0 | CX34: 0 | DI34: 0 | DJ34: 0
A35: 33 | Q35: 0 | R35: 0 | AC35: 0 | AD35: 0 | AO35: 0 | AP35: 0 | BA35: 0 | BB35: 0 | BM35: 0 | BN35: 0 | BY35: 0 | BZ35: 0 | CK35: 0 | CL35: 0 | CW35: 0 | CX35: 0 | DI35: 0 | DJ35: 0
A36: 34 | Q36: 0 | R36: 0 | AC36: 0 | AD36: 0 | AO36: 0 | AP36: 0 | BA36: 0 | BB36: 0 | BM36: 0 | BN36: 0 | BY36: 0 | BZ36: 0 | CK36: 0 | CL36: 0 | CW36: 0 | CX36: 0 | DI36: 0 | DJ36: 0
A37: 35 | Q37: 0 | R37: 0 | AC37: 0 | AD37: 0 | AO37: 0 | AP37: 0 | BA37: 0 | BB37: 0 | BM37: 0 | BN37: 0 | BY37: 0 | BZ37: 0 | CK37: 0 | CL37: 0 | CW37: 0 | CX37: 0 | DI37: 0 | DJ37: 0
A38: 36 | Q38: 0 | R38: 0 | AC38: 0 | AD38: 0 | AO38: 0 | AP38: 0 | BA38: 0 | BB38: 0 | BM38: 0 | BN38: 0 | BY38: 0 | BZ38: 0 | CK38: 0 | CL38: 0 | CW38: 0 | CX38: 0 | DI38: 0 | DJ38: 0
A39: 37 | Q39: 0 | R39: 0 | AC39: 0 | AD39: 0 | AO39: 0 | AP39: 0 | BA39: 0 | BB39: 0 | BM39: 0 | BN39: 0 | BY39: 0 | BZ39: 0 | CK39: 0 | CL39: 0 | CW39: 0 | CX39: 0 | DI39: 0 | DJ39: 0
A40: 38 | Q40: 0 | R40: 0 | AC40: 0 | AD40: 0 | AO40: 0 | AP40: 0 | BA40: 0 | BB40: 0 | BM40: 0 | BN40: 0 | BY40: 0 | BZ40: 0 | CK40: 0 | CL40: 0 | CW40: 0 | CX40: 0 | DI40: 0 | DJ40: 0
A41: 39 | Q41: 0 | R41: 0 | AC41: 0 | AD41: 0 | AO41: 0 | AP41: 0 | BA41: 0 | BB41: 0 | BM41: 0 | BN41: 0 | BY41: 0 | BZ41: 0 | CK41: 0 | CL41: 0 | CW41: 0 | CX41: 0 | DI41: 0 | DJ41: 0
A42: 40 | Q42: 0 | R42: 0 | AC42: 0 | AD42: 0 | AO42: 0 | AP42: 0 | BA42: 0 | BB42: 0 | BM42: 0 | BN42: 0 | BY42: 0 | BZ42: 0 | CK42: 0 | CL42: 0 | CW42: 0 | CX42: 0 | DI42: 0 | DJ42: 0
A43: 41 | Q43: 0 | R43: 0 | AC43: 0 | AD43: 0 | AO43: 0 | AP43: 0 | BA43: 0 | BB43: 0 | BM43: 0 | BN43: 0 | BY43: 0 | BZ43: 0 | CK43: 0 | CL43: 0 | CW43: 0 | CX43: 0 | DI43: 0 | DJ43: 0
A44: 42 | Q44: 0 | R44: 0 | AC44: 0 | AD44: 0 | AO44: 0 | AP44: 0 | BA44: 0 | BB44: 0 | BM44: 0 | BN44: 0 | BY44: 0 | BZ44: 0 | CK44: 0 | CL44: 0 | CW44: 0 | CX44: 0 | DI44: 0 | DJ44: 0
A45: 43 | Q45: 0 | R45: 0 | AC45: 0 | AD45: 0 | AO45: 0 | AP45: 0 | BA45: 0 | BB45: 0 | BM45: 0 | BN45: 0 | BY45: 0 | BZ45: 0 | CK45: 0 | CL45: 0 | CW45: 0 | CX45: 0 | DI45: 0 | DJ45: 0
A46: 44 | Q46: 0 | R46: 0 | AC46: 0 | AD46: 0 | AO46: 0 | AP46: 0 | BA46: 0 | BB46: 0 | BM46: 0 | BN46: 0 | BY46: 0 | BZ46: 0 | CK46: 0 | CL46: 0 | CW46: 0 | CX46: 0 | DI46: 0 | DJ46: 0
A47: 45 | Q47: 0 | R47: 0 | AC47: 0 | AD47: 0 | AO47: 0 | AP47: 0 | BA47: 0 | BB47: 0 | BM47: 0 | BN47: 0 | BY47: 0 | BZ47: 0 | CK47: 0 | CL47: 0 | CW47: 0 | CX47: 0 | DI47: 0 | DJ47: 0
A48: 46 | Q48: 0 | R48: 0 | AC48: 0 | AD48: 0 | AO48: 0 | AP48: 0 | BA48: 0 | BB48: 0 | BM48: 0 | BN48: 0 | BY48: 0 | BZ48: 0 | CK48: 0 | CL48: 0 | CW48: 0 | CX48: 0 | DI48: 0 | DJ48: 0
A49: 47 | Q49: 0 | R49: 0 | AC49: 0 | AD49: 0 | AO49: 0 | AP49: 0 | BA49: 0 | BB49: 0 | BM49: 0 | BN49: 0 | BY49: 0 | BZ49: 0 | CK49: 0 | CL49: 0 | CW49: 0 | CX49: 0 | DI49: 0 | DJ49: 0
A50: 48 | Q50: 0 | R50: 0 | AC50: 0 | AD50: 0 | AO50: 0 | AP50: 0 | BA50: 0 | BB50: 0 | BM50: 0 | BN50: 0 | BY50: 0 | BZ50: 0 | CK50: 0 | CL50: 0 | CW50: 0 | CX50: 0 | DI50: 0 | DJ50: 0
A51: 49 | Q51: 0 | R51: 0 | AC51: 0 | AD51: 0 | AO51: 0 | AP51: 0 | BA51: 0 | BB51: 0 | BM51: 0 | BN51: 0 | BY51: 0 | BZ51: 0 | CK51: 0 | CL51: 0 | CW51: 0 | CX51: 0 | DI51: 0 | DJ51: 0
A52: 50 | Q52: 0 | R52: 0 | AC52: 0 | AD52: 0 | AO52: 0 | AP52: 0 | BA52: 0 | BB52: 0 | BM52: 0 | BN52: 0 | BY52: 0 | BZ52: 0 | CK52: 0 | CL52: 0 | CW52: 0 | CX52: 0 | DI52: 0 | DJ52: 0
A53: 51 | Q53: 0 | R53: 0 | AC53: 0 | AD53: 0 | AO53: 0 | AP53: 0 | BA53: 0 | BB53: 0 | BM53: 0 | BN53: 0 | BY53: 0 | BZ53: 0 | CK53: 0 | CL53: 0 | CW53: 0 | CX53: 0 | DI53: 0 | DJ53: 0
A54: 52 | Q54: 0 | R54: 0 | AC54: 0 | AD54: 0 | AO54: 0 | AP54: 0 | BA54: 0 | BB54: 0 | BM54: 0 | BN54: 0 | BY54: 0 | BZ54: 0 | CK54: 0 | CL54: 0 | CW54: 0 | CX54: 0 | DI54: 0 | DJ54: 0
A55: 53 | Q55: 0 | R55: 0 | AC55: 0 | AD55: 0 | AO55: 0 | AP55: 0 | BA55: 0 | BB55: 0 | BM55: 0 | BN55: 0 | BY55: 0 | BZ55: 0 | CK55: 0 | CL55: 0 | CW55: 0 | CX55: 0 | DI55: 0 | DJ55: 0
A56: 54 | Q56: 0 | R56: 0 | AC56: 0 | AD56: 0 | AO56: 0 | AP56: 0 | BA56: 0 | BB56: 0 | BM56: 0 | BN56: 0 | BY56: 0 | BZ56: 0 | CK56: 0 | CL56: 0 | CW56: 0 | CX56: 0 | DI56: 0 | DJ56: 0
A57: 55 | Q57: 0 | R57: 0 | AC57: 0 | AD57: 0 | AO57: 0 | AP57: 0 | BA57: 0 | BB57: 0 | BM57: 0 | BN57: 0 | BY57: 0 | BZ57: 0 | CK57: 0 | CL57: 0 | CW57: 0 | CX57: 0 | DI57: 0 | DJ57: 0
A58: 56 | Q58: 0 | R58: 0 | AC58: 0 | AD58: 0 | AO58: 0 | AP58: 0 | BA58: 0 | BB58: 0 | BM58: 0 | BN58: 0 | BY58: 0 | BZ58: 0 | CK58: 0 | CL58: 0 | CW58: 0 | CX58: 0 | DI58: 0 | DJ58: 0
A59: 57 | Q59: 0 | R59: 0 | AC59: 0 | AD59: 0 | AO59: 0 | AP59: 0 | BA59: 0 | BB59: 0 | BM59: 0 | BN59: 0 | BY59: 0 | BZ59: 0 | CK59: 0 | CL59: 0 | CW59: 0 | CX59: 0 | DI59: 0 | DJ59: 0
A60: 58 | Q60: 0 | R60: 0 | AC60: 0 | AD60: 0 | AO60: 0 | AP60: 0 | BA60: 0 | BB60: 0 | BM60: 0 | BN60: 0 | BY60: 0 | BZ60: 0 | CK60: 0 | CL60: 0 | CW60: 0 | CX60: 0 | DI60: 0 | DJ60: 0
A61: 59 | Q61: 0 | R61: 0 | AC61: 0 | AD61: 0 | AO61: 0 | AP61: 0 | BA61: 0 | BB61: 0 | BM61: 0 | BN61: 0 | BY61: 0 | BZ61: 0 | CK61: 0 | CL61: 0 | CW61: 0 | CX61: 0 | DI61: 0 | DJ61: 0
A62: 60 | Q62: 0 | R62: 0 | AC62: 0 | AD62: 0 | AO62: 0 | AP62: 0 | BA62: 0 | BB62: 0 | BM62: 0 | BN62: 0 | BY62: 0 | BZ62: 0 | CK62: 0 | CL62: 0 | CW62: 0 | CX62: 0 | DI62: 0 | DJ62: 0
A63: 61 | Q63: 0 | R63: 0 | AC63: 0 | AD63: 0 | AO63: 0 | AP63: 0 | BA63: 0 | BB63: 0 | BM63: 0 | BN63: 0 | BY63: 0 | BZ63: 0 | CK63: 0 | CL63: 0 | CW63: 0 | CX63: 0 | DI63: 0 | DJ63: 0
A64: 62 | Q64: 0 | R64: 0 | AC64: 0 | AD64: 0 | AO64: 0 | AP64: 0 | BA64: 0 | BB64: 0 | BM64: 0 | BN64: 0 | BY64: 0 | BZ64: 0 | CK64: 0 | CL64: 0 | CW64: 0 | CX64: 0 | DI64: 0 | DJ64: 0
A65: 63 | Q65: 0 | R65: 0 | AC65: 0 | AD65: 0 | AO65: 0 | AP65: 0 | BA65: 0 | BB65: 0 | BM65: 0 | BN65: 0 | BY65: 0 | BZ65: 0 | CK65: 0 | CL65: 0 | CW65: 0 | CX65: 0 | DI65: 0 | DJ65: 0
A66: 64 | Q66: 0 | R66: 0 | AC66: 0 | AD66: 0 | AO66: 0 | AP66: 0 | BA66: 0 | BB66: 0 | BM66: 0 | BN66: 0 | BY66: 0 | BZ66: 0 | CK66: 0 | CL66: 0 | CW66: 0 | CX66: 0 | DI66: 0 | DJ66: 0
A67: 65 | Q67: 0 | R67: 0 | AC67: 0 | AD67: 0 | AO67: 0 | AP67: 0 | BA67: 0 | BB67: 0 | BM67: 0 | BN67: 0 | BY67: 0 | BZ67: 0 | CK67: 0 | CL67: 0 | CW67: 0 | CX67: 0 | DI67: 0 | DJ67: 0
A68: 66 | Q68: =COUNTIF(G68:P68,">0") -> 0 | R68: =IF(Q68>0,(SUM(G68:P68)/Q68),0) -> 0 | AC68: =COUNTIF(S68:AB68,">0") -> 0 | AD68: =IF(AC68>0,(SUM(S68:AB68)/AC68),0) -> 0 | AO68: =COUNTIF(AE68:AN68,">0") -> 0 | AP68: =IF(AO68>0,(SUM(AE68:AN68)/AO68),0) -> 0 | BA68: =COUNTIF(AQ68:AZ68,">0") -> 0 | BB68: =IF(BA68>0,(SUM(AQ68:AZ68)/BA68),0) -> 0 | BM68: =COUNTIF(BC68:BL68,">0") -> 0 | BN68: =IF(BM68>0,(SUM(BC68:BL68)/BM68),0) -> 0 | BY68: =COUNTIF(BO68:BX68,">0") -> 0 | BZ68: =IF(BY68>0,(SUM(BO68:BX68)/BY68),0) -> 0 | CK68: =COUNTIF(CA68:CJ68,">0") -> 0 | CL68: =IF(CK68>0,(SUM(CA68:CJ68)/CK68),0) -> 0 | CW68: =COUNTIF(CM68:CV68,">0") -> 0 | CX68: =IF(CW68>0,(SUM(CM68:CV68)/CW68),0) -> 0 | DI68: =COUNTIF(CY68:DH68,">0") -> 0 | DJ68: =IF(DI68>0,(SUM(CY68:DH68)/DI68),0) -> 0
A69: 67 | Q69: 0 | R69: 0 | AC69: 0 | AD69: 0 | AO69: 0 | AP69: 0 | BA69: 0 | BB69: 0 | BM69: 0 | BN69: 0 | BY69: 0 | BZ69: 0 | CK69: 0 | CL69: 0 | CW69: 0 | CX69: 0 | DI69: 0 | DJ69: 0
A70: 68 | Q70: 0 | R70: 0 | AC70: 0 | AD70: 0 | AO70: 0 | AP70: 0 | BA70: 0 | BB70: 0 | BM70: 0 | BN70: 0 | BY70: 0 | BZ70: 0 | CK70: 0 | CL70: 0 | CW70: 0 | CX70: 0 | DI70: 0 | DJ70: 0
A71: 69 | Q71: 0 | R71: 0 | AC71: 0 | AD71: 0 | AO71: 0 | AP71: 0 | BA71: 0 | BB71: 0 | BM71: 0 | BN71: 0 | BY71: 0 | BZ71: 0 | CK71: 0 | CL71: 0 | CW71: 0 | CX71: 0 | DI71: 0 | DJ71: 0
A72: 70 | Q72: 0 | R72: 0 | AC72: 0 | AD72: 0 | AO72: 0 | AP72: 0 | BA72: 0 | BB72: 0 | BM72: 0 | BN72: 0 | BY72: 0 | BZ72: 0 | CK72: 0 | CL72: 0 | CW72: 0 | CX72: 0 | DI72: 0 | DJ72: 0
A73: 71 | Q73: 0 | R73: 0 | AC73: 0 | AD73: 0 | AO73: 0 | AP73: 0 | BA73: 0 | BB73: 0 | BM73: 0 | BN73: 0 | BY73: 0 | BZ73: 0 | CK73: 0 | CL73: 0 | CW73: 0 | CX73: 0 | DI73: 0 | DJ73: 0
A74: 72 | Q74: 0 | R74: 0 | AC74: 0 | AD74: 0 | AO74: 0 | AP74: 0 | BA74: 0 | BB74: 0 | BM74: 0 | BN74: 0 | BY74: 0 | BZ74: 0 | CK74: 0 | CL74: 0 | CW74: 0 | CX74: 0 | DI74: 0 | DJ74: 0
A75: 73 | Q75: 0 | R75: 0 | AC75: 0 | AD75: 0 | AO75: 0 | AP75: 0 | BA75: 0 | BB75: 0 | BM75: 0 | BN75: 0 | BY75: 0 | BZ75: 0 | CK75: 0 | CL75: 0 | CW75: 0 | CX75: 0 | DI75: 0 | DJ75: 0
A76: 74 | Q76: 0 | R76: 0 | AC76: 0 | AD76: 0 | AO76: 0 | AP76: 0 | BA76: 0 | BB76: 0 | BM76: 0 | BN76: 0 | BY76: 0 | BZ76: 0 | CK76: 0 | CL76: 0 | CW76: 0 | CX76: 0 | DI76: 0 | DJ76: 0
A77: 75 | Q77: 0 | R77: 0 | AC77: 0 | AD77: 0 | AO77: 0 | AP77: 0 | BA77: 0 | BB77: 0 | BM77: 0 | BN77: 0 | BY77: 0 | BZ77: 0 | CK77: 0 | CL77: 0 | CW77: 0 | CX77: 0 | DI77: 0 | DJ77: 0
A78: 76 | Q78: 0 | R78: 0 | AC78: 0 | AD78: 0 | AO78: 0 | AP78: 0 | BA78: 0 | BB78: 0 | BM78: 0 | BN78: 0 | BY78: 0 | BZ78: 0 | CK78: 0 | CL78: 0 | CW78: 0 | CX78: 0 | DI78: 0 | DJ78: 0
A79: 77 | Q79: 0 | R79: 0 | AC79: 0 | AD79: 0 | AO79: 0 | AP79: 0 | BA79: 0 | BB79: 0 | BM79: 0 | BN79: 0 | BY79: 0 | BZ79: 0 | CK79: 0 | CL79: 0 | CW79: 0 | CX79: 0 | DI79: 0 | DJ79: 0
A80: 78 | Q80: 0 | R80: 0 | AC80: 0 | AD80: 0 | AO80: 0 | AP80: 0 | BA80: 0 | BB80: 0 | BM80: 0 | BN80: 0 | BY80: 0 | BZ80: 0 | CK80: 0 | CL80: 0 | CW80: 0 | CX80: 0 | DI80: 0 | DJ80: 0
A81: 79 | Q81: 0 | R81: 0 | AC81: 0 | AD81: 0 | AO81: 0 | AP81: 0 | BA81: 0 | BB81: 0 | BM81: 0 | BN81: 0 | BY81: 0 | BZ81: 0 | CK81: 0 | CL81: 0 | CW81: 0 | CX81: 0 | DI81: 0 | DJ81: 0
A82: 80 | Q82: 0 | R82: 0 | AC82: 0 | AD82: 0 | AO82: 0 | AP82: 0 | BA82: 0 | BB82: 0 | BM82: 0 | BN82: 0 | BY82: 0 | BZ82: 0 | CK82: 0 | CL82: 0 | CW82: 0 | CX82: 0 | DI82: 0 | DJ82: 0
A83: 81 | Q83: 0 | R83: 0 | AC83: 0 | AD83: 0 | AO83: 0 | AP83: 0 | BA83: 0 | BB83: 0 | BM83: 0 | BN83: 0 | BY83: 0 | BZ83: 0 | CK83: 0 | CL83: 0 | CW83: 0 | CX83: 0 | DI83: 0 | DJ83: 0
A84: 82 | Q84: 0 | R84: 0 | AC84: 0 | AD84: 0 | AO84: 0 | AP84: 0 | BA84: 0 | BB84: 0 | BM84: 0 | BN84: 0 | BY84: 0 | BZ84: 0 | CK84: 0 | CL84: 0 | CW84: 0 | CX84: 0 | DI84: 0 | DJ84: 0
A85: 83 | Q85: 0 | R85: 0 | AC85: 0 | AD85: 0 | AO85: 0 | AP85: 0 | BA85: 0 | BB85: 0 | BM85: 0 | BN85: 0 | BY85: 0 | BZ85: 0 | CK85: 0 | CL85: 0 | CW85: 0 | CX85: 0 | DI85: 0 | DJ85: 0
A86: 84 | Q86: 0 | R86: 0 | AC86: 0 | AD86: 0 | AO86: 0 | AP86: 0 | BA86: 0 | BB86: 0 | BM86: 0 | BN86: 0 | BY86: 0 | BZ86: 0 | CK86: 0 | CL86: 0 | CW86: 0 | CX86: 0 | DI86: 0 | DJ86: 0
A87: 85 | Q87: 0 | R87: 0 | AC87: 0 | AD87: 0 | AO87: 0 | AP87: 0 | BA87: 0 | BB87: 0 | BM87: 0 | BN87: 0 | BY87: 0 | BZ87: 0 | CK87: 0 | CL87: 0 | CW87: 0 | CX87: 0 | DI87: 0 | DJ87: 0
A88: 86 | Q88: 0 | R88: 0 | AC88: 0 | AD88: 0 | AO88: 0 | AP88: 0 | BA88: 0 | BB88: 0 | BM88: 0 | BN88: 0 | BY88: 0 | BZ88: 0 | CK88: 0 | CL88: 0 | CW88: 0 | CX88: 0 | DI88: 0 | DJ88: 0
A89: 87 | Q89: 0 | R89: 0 | AC89: 0 | AD89: 0 | AO89: 0 | AP89: 0 | BA89: 0 | BB89: 0 | BM89: 0 | BN89: 0 | BY89: 0 | BZ89: 0 | CK89: 0 | CL89: 0 | CW89: 0 | CX89: 0 | DI89: 0 | DJ89: 0
A90: 88 | Q90: =COUNTIF(G90:P90,">0") -> 0 | R90: 0 | AC90: 0 | AD90: 0 | AO90: 0 | AP90: 0 | BA90: 0 | BB90: 0 | BM90: 0 | BN90: 0 | BY90: 0 | BZ90: 0 | CK90: 0 | CL90: 0 | CW90: 0 | CX90: 0 | DI90: 0 | DJ90: 0
A91: 89 | Q91: 0 | R91: 0 | AC91: 0 | AD91: 0 | AO91: 0 | AP91: 0 | BA91: 0 | BB91: 0 | BM91: 0 | BN91: 0 | BY91: 0 | BZ91: 0 | CK91: 0 | CL91: 0 | CW91: 0 | CX91: 0 | DI91: 0 | DJ91: 0
A92: 90 | Q92: 0 | R92: 0 | AC92: 0 | AD92: 0 | AO92: 0 | AP92: 0 | BA92: 0 | BB92: 0 | BM92: 0 | BN92: 0 | BY92: 0 | BZ92: 0 | CK92: 0 | CL92: 0 | CW92: 0 | CX92: 0 | DI92: 0 | DJ92: 0
A93: 91 | Q93: 0 | R93: 0 | AC93: 0 | AD93: 0 | AO93: 0 | AP93: 0 | BA93: 0 | BB93: 0 | BM93: 0 | BN93: 0 | BY93: 0 | BZ93: 0 | CK93: 0 | CL93: 0 | CW93: 0 | CX93: 0 | DI93: 0 | DJ93: 0
A94: 92 | Q94: 0 | R94: 0 | AC94: 0 | AD94: 0 | AO94: 0 | AP94: 0 | BA94: 0 | BB94: 0 | BM94: 0 | BN94: 0 | BY94: 0 | BZ94: 0 | CK94: 0 | CL94: 0 | CW94: 0 | CX94: 0 | DI94: 0 | DJ94: 0
A95: 93 | G95: 3 | Q95: 1 | R95: 3 | AC95: 0 | AD95: 0 | AO95: 0 | AP95: 0 | BA95: 0 | BB95: 0 | BM95: 0 | BN95: 0 | BY95: 0 | BZ95: 0 | CK95: 0 | CL95: 0 | CW95: 0 | CX95: 0 | DI95: 0 | DJ95: 0
A96: 94 | G96: 4 | Q96: 1 | R96: 4 | AC96: 0 | AD96: 0 | AO96: 0 | AP96: 0 | BA96: 0 | BB96: 0 | BM96: 0 | BN96: 0 | BY96: 0 | BZ96: 0 | CK96: 0 | CL96: 0 | CW96: 0 | CX96: 0 | DI96: 0 | DJ96: 0
A97: 95 | G97: 3 | Q97: 1 | R97: 3 | AC97: 0 | AD97: 0 | AO97: 0 | AP97: 0 | BA97: 0 | BB97: 0 | BM97: 0 | BN97: 0 | BY97: 0 | BZ97: 0 | CK97: 0 | CL97: 0 | CW97: 0 | CX97: 0 | DI97: 0 | DJ97: 0
A98: 96 | G98: 4 | Q98: =COUNTIF(G98:P98,">0") -> 1 | R98: 4 | S98: 1 | AC98: 1 | AD98: 1 | AO98: 0 | AP98: 0 | BA98: 0 | BB98: 0 | BM98: 0 | BN98: 0 | BY98: 0 | BZ98: 0 | CK98: 0 | CL98: 0 | CW98: 0 | CX98: 0 | DI98: 0 | DJ98: 0
A99: 97 | G99: 2 | Q99: 1 | R99: 2 | S99: 2 | AC99: 1 | AD99: 2 | AO99: 0 | AP99: 0 | BA99: 0 | BB99: 0 | BM99: 0 | BN99: 0 | BY99: 0 | BZ99: 0 | CK99: 0 | CL99: 0 | CW99: 0 | CX99: 0 | DI99: 0 | DJ99: 0
A100: 98 | G100: 3 | Q100: 1 | R100: 3 | AC100: 0 | AD100: 0 | AO100: 0 | AP100: 0 | BA100: 0 | BB100: 0 | BM100: 0 | BN100: 0 | BY100: 0 | BZ100: 0 | CK100: 0 | CL100: 0 | CW100: 0 | CX100: 0 | DI100: 0 | DJ100: 0
A101: 99 | G101: 2 | Q101: 1 | R101: 2 | AC101: 0 | AD101: 0 | AO101: 0 | AP101: 0 | BA101: 0 | BB101: 0 | BM101: 0 | BN101: 0 | BY101: 0 | BZ101: 0 | CK101: 0 | CL101: 0 | CW101: 0 | CX101: 0 | DI101: 0 | DJ101: 0
A102: 100 | G102: 3 | Q102: 1 | R102: 3 | S102: 3 | AC102: 1 | AD102: 3 | AO102: 0 | AP102: 0 | BA102: 0 | BB102: 0 | BM102: 0 | BN102: 0 | BY102: 0 | BZ102: 0 | CK102: 0 | CL102: 0 | CW102: 0 | CX102: 0 | DI102: 0 | DJ102: 0
A103: 101 | Q103: 0 | R103: 0 | AC103: 0 | AD103: 0 | AO103: 0 | AP103: 0 | BA103: 0 | BB103: 0 | BM103: 0 | BN103: 0 | BY103: 0 | BZ103: 0 | CK103: 0 | CL103: 0 | CW103: 0 | CX103: 0 | DI103: 0 | DJ103: 0
A104: 102 | Q104: 0 | R104: 0 | AC104: 0 | AD104: 0 | AO104: 0 | AP104: 0 | BA104: 0 | BB104: 0 | BM104: 0 | BN104: 0 | BY104: 0 | BZ104: 0 | CK104: 0 | CL104: 0 | CW104: 0 | CX104: 0 | DI104: 0 | DJ104: 0
A105: 103 | Q105: 0 | R105: 0 | AC105: 0 | AD105: 0 | AO105: 0 | AP105: 0 | BA105: 0 | BB105: 0 | BM105: 0 | BN105: 0 | BY105: 0 | BZ105: 0 | CK105: 0 | CL105: 0 | CW105: 0 | CX105: 0 | DI105: 0 | DJ105: 0
A106: 104 | Q106: 0 | R106: 0 | AC106: 0 | AD106: 0 | AO106: 0 | AP106: 0 | BA106: 0 | BB106: 0 | BM106: 0 | BN106: 0 | BY106: 0 | BZ106: 0 | CK106: 0 | CL106: 0 | CW106: 0 | CX106: 0 | DI106: 0 | DJ106: 0
A107: 105 | Q107: 0 | R107: 0 | AC107: 0 | AD107: 0 | AO107: 0 | AP107: 0 | BA107: 0 | BB107: 0 | BM107: 0 | BN107: 0 | BY107: 0 | BZ107: 0 | CK107: 0 | CL107: 0 | CW107: 0 | CX107: 0 | DI107: 0 | DJ107: 0
A108: 106 | Q108: 0 | R108: 0 | AC108: 0 | AD108: 0 | AO108: 0 | AP108: 0 | BA108: 0 | BB108: 0 | BM108: 0 | BN108: 0 | BY108: 0 | BZ108: 0 | CK108: 0 | CL108: 0 | CW108: 0 | CX108: 0 | DI108: 0 | DJ108: 0
A109: 107 | Q109: 0 | R109: 0 | AC109: 0 | AD109: 0 | AO109: 0 | AP109: 0 | BA109: 0 | BB109: 0 | BM109: 0 | BN109: 0 | BY109: 0 | BZ109: 0 | CK109: 0 | CL109: 0 | CW109: 0 | CX109: 0 | DI109: 0 | DJ109: 0
A110: 108 | Q110: 0 | R110: 0 | AC110: 0 | AD110: 0 | AO110: 0 | AP110: 0 | BA110: 0 | BB110: 0 | BM110: 0 | BN110: 0 | BY110: 0 | BZ110: 0 | CK110: 0 | CL110: 0 | CW110: 0 | CX110: 0 | DI110: 0 | DJ110: 0
A111: 109 | Q111: 0 | R111: 0 | AC111: 0 | AD111: 0 | AO111: 0 | AP111: 0 | BA111: 0 | BB111: 0 | BM111: 0 | BN111: 0 | BY111: 0 | BZ111: 0 | CK111: 0 | CL111: 0 | CW111: 0 | CX111: 0 | DI111: 0 | DJ111: 0
A112: 110 | Q112: 0 | R112: 0 | AC112: 0 | AD112: 0 | AO112: 0 | AP112: 0 | BA112: 0 | BB112: 0 | BM112: 0 | BN112: 0 | BY112: 0 | BZ112: 0 | CK112: 0 | CL112: 0 | CW112: 0 | CX112: 0 | DI112: 0 | DJ112: 0
A113: 111 | Q113: 0 | R113: 0 | AC113: 0 | AD113: 0 | AO113: 0 | AP113: 0 | BA113: 0 | BB113: 0 | BM113: 0 | BN113: 0 | BY113: 0 | BZ113: 0 | CK113: 0 | CL113: 0 | CW113: 0 | CX113: 0 | DI113: 0 | DJ113: 0
A114: 112 | Q114: 0 | R114: 0 | AC114: 0 | AD114: 0 | AO114: 0 | AP114: 0 | BA114: 0 | BB114: 0 | BM114: 0 | BN114: 0 | BY114: 0 | BZ114: 0 | CK114: 0 | CL114: 0 | CW114: 0 | CX114: 0 | DI114: 0 | DJ114: 0
A115: 113 | Q115: 0 | R115: 0 | AC115: 0 | AD115: 0 | AO115: 0 | AP115: 0 | BA115: 0 | BB115: 0 | BM115: 0 | BN115: 0 | BY115: 0 | BZ115: 0 | CK115: 0 | CL115: 0 | CW115: 0 | CX115: 0 | DI115: 0 | DJ115: 0
A116: 114 | Q116: 0 | R116: 0 | AC116: 0 | AD116: 0 | AO116: 0 | AP116: 0 | BA116: 0 | BB116: 0 | BM116: 0 | BN116: 0 | BY116: 0 | BZ116: 0 | CK116: 0 | CL116: 0 | CW116: 0 | CX116: 0 | DI116: 0 | DJ116: 0
A117: 115 | Q117: 0 | R117: 0 | AC117: 0 | AD117: 0 | AO117: 0 | AP117: 0 | BA117: 0 | BB117: 0 | BM117: 0 | BN117: 0 | BY117: 0 | BZ117: 0 | CK117: 0 | CL117: 0 | CW117: 0 | CX117: 0 | DI117: 0 | DJ117: 0
A118: 116 | Q118: 0 | R118: 0 | AC118: 0 | AD118: 0 | AO118: 0 | AP118: 0 | BA118: 0 | BB118: 0 | BM118: 0 | BN118: 0 | BY118: 0 | BZ118: 0 | CK118: 0 | CL118: 0 | CW118: 0 | CX118: 0 | DI118: 0 | DJ118: 0
A119: 117 | Q119: 0 | R119: 0 | AC119: 0 | AD119: 0 | AO119: 0 | AP119: 0 | BA119: 0 | BB119: 0 | BM119: 0 | BN119: 0 | BY119: 0 | BZ119: 0 | CK119: 0 | CL119: 0 | CW119: 0 | CX119: 0 | DI119: 0 | DJ119: 0
A120: 118 | Q120: 0 | R120: 0 | AC120: 0 | AD120: 0 | AO120: 0 | AP120: 0 | BA120: 0 | BB120: 0 | BM120: 0 | BN120: 0 | BY120: 0 | BZ120: 0 | CK120: 0 | CL120: 0 | CW120: 0 | CX120: 0 | DI120: 0 | DJ120: 0
A121: 119 | Q121: 0 | R121: 0 | AC121: 0 | AD121: 0 | AO121: 0 | AP121: 0 | BA121: 0 | BB121: 0 | BM121: 0 | BN121: 0 | BY121: 0 | BZ121: 0 | CK121: 0 | CL121: 0 | CW121: 0 | CX121: 0 | DI121: 0 | DJ121: 0
A122: 120 | Q122: 0 | R122: 0 | AC122: 0 | AD122: 0 | AO122: 0 | AP122: 0 | BA122: 0 | BB122: 0 | BM122: 0 | BN122: 0 | BY122: 0 | BZ122: 0 | CK122: 0 | CL122: 0 | CW122: 0 | CX122: 0 | DI122: 0 | DJ122: 0
A123: 121 | Q123: 0 | R123: 0 | AC123: 0 | AD123: 0 | AO123: 0 | AP123: 0 | BA123: 0 | BB123: 0 | BM123: 0 | BN123: 0 | BY123: 0 | BZ123: 0 | CK123: 0 | CL123: 0 | CW123: 0 | CX123: 0 | DI123: 0 | DJ123: 0
A124: 122 | Q124: 0 | R124: 0 | AC124: 0 | AD124: 0 | AO124: 0 | AP124: 0 | BA124: 0 | BB124: 0 | BM124: 0 | BN124: 0 | BY124: 0 | BZ124: 0 | CK124: 0 | CL124: 0 | CW124: 0 | CX124: 0 | DI124: 0 | DJ124: 0
A125: 123 | Q125: 0 | R125: 0 | AC125: 0 | AD125: 0 | AO125: 0 | AP125: 0 | BA125: 0 | BB125: 0 | BM125: 0 | BN125: 0 | BY125: 0 | BZ125: 0 | CK125: 0 | CL125: 0 | CW125: 0 | CX125: 0 | DI125: 0 | DJ125: 0
A126: 124 | Q126: 0 | R126: 0 | AC126: 0 | AD126: 0 | AO126: 0 | AP126: 0 | BA126: 0 | BB126: 0 | BM126: 0 | BN126: 0 | BY126: 0 | BZ126: 0 | CK126: 0 | CL126: 0 | CW126: 0 | CX126: 0 | DI126: 0 | DJ126: 0
A127: 125 | Q127: 0 | R127: 0 | AC127: 0 | AD127: 0 | AO127: 0 | AP127: 0 | BA127: 0 | BB127: 0 | BM127: 0 | BN127: 0 | BY127: 0 | BZ127: 0 | CK127: 0 | CL127: 0 | CW127: 0 | CX127: 0 | DI127: 0 | DJ127: 0
A128: 126 | Q128: 0 | R128: 0 | AC128: 0 | AD128: 0 | AO128: 0 | AP128: 0 | BA128: 0 | BB128: 0 | BM128: 0 | BN128: 0 | BY128: 0 | BZ128: 0 | CK128: 0 | CL128: 0 | CW128: 0 | CX128: 0 | DI128: 0 | DJ128: 0
A129: 127 | Q129: 0 | R129: 0 | AC129: 0 | AD129: 0 | AO129: 0 | AP129: 0 | BA129: 0 | BB129: 0 | BM129: 0 | BN129: 0 | BY129: 0 | BZ129: 0 | CK129: 0 | CL129: 0 | CW129: 0 | CX129: 0 | DI129: 0 | DJ129: 0
A130: 128 | Q130: 0 | R130: 0 | AC130: 0 | AD130: 0 | AO130: 0 | AP130: 0 | BA130: 0 | BB130: 0 | BM130: 0 | BN130: 0 | BY130: 0 | BZ130: 0 | CK130: 0 | CL130: 0 | CW130: 0 | CX130: 0 | DI130: 0 | DJ130: 0
A131: 129 | Q131: 0 | R131: 0 | AC131: 0 | AD131: 0 | AO131: 0 | AP131: 0 | BA131: 0 | BB131: 0 | BM131: 0 | BN131: 0 | BY131: 0 | BZ131: 0 | CK131: 0 | CL131: 0 | CW131: 0 | CX131: 0 | DI131: 0 | DJ131: 0
A132: 130 | Q132: =COUNTIF(G132:P132,">0") -> 0 | R132: =IF(Q132>0,(SUM(G132:P132)/Q132),0) -> 0 | AC132: =COUNTIF(S132:AB132,">0") -> 0 | AD132: =IF(AC132>0,(SUM(S132:AB132)/AC132),0) -> 0 | AO132: =COUNTIF(AE132:AN132,">0") -> 0 | AP132: =IF(AO132>0,(SUM(AE132:AN132)/AO132),0) -> 0 | BA132: =COUNTIF(AQ132:AZ132,">0") -> 0 | BB132: =IF(BA132>0,(SUM(AQ132:AZ132)/BA132),0) -> 0 | BM132: =COUNTIF(BC132:BL132,">0") -> 0 | BN132: =IF(BM132>0,(SUM(BC132:BL132)/BM132),0) -> 0 | BY132: =COUNTIF(BO132:BX132,">0") -> 0 | BZ132: =IF(BY132>0,(SUM(BO132:BX132)/BY132),0) -> 0 | CK132: =COUNTIF(CA132:CJ132,">0") -> 0 | CL132: =IF(CK132>0,(SUM(CA132:CJ132)/CK132),0) -> 0 | CW132: =COUNTIF(CM132:CV132,">0") -> 0 | CX132: =IF(CW132>0,(SUM(CM132:CV132)/CW132),0) -> 0 | DI132: =COUNTIF(CY132:DH132,">0") -> 0 | DJ132: =IF(DI132>0,(SUM(CY132:DH132)/DI132),0) -> 0
A133: 131 | Q133: 0 | R133: 0 | AC133: 0 | AD133: 0 | AO133: 0 | AP133: 0 | BA133: 0 | BB133: 0 | BM133: 0 | BN133: 0 | BY133: 0 | BZ133: 0 | CK133: 0 | CL133: 0 | CW133: 0 | CX133: 0 | DI133: 0 | DJ133: 0
A134: 132 | Q134: 0 | R134: 0 | AC134: 0 | AD134: 0 | AO134: 0 | AP134: 0 | BA134: 0 | BB134: 0 | BM134: 0 | BN134: 0 | BY134: 0 | BZ134: 0 | CK134: 0 | CL134: 0 | CW134: 0 | CX134: 0 | DI134: 0 | DJ134: 0
A135: 133 | Q135: 0 | R135: 0 | AC135: 0 | AD135: 0 | AO135: 0 | AP135: 0 | BA135: 0 | BB135: 0 | BM135: 0 | BN135: 0 | BY135: 0 | BZ135: 0 | CK135: 0 | CL135: 0 | CW135: 0 | CX135: 0 | DI135: 0 | DJ135: 0
A136: 134 | Q136: 0 | R136: 0 | AC136: 0 | AD136: 0 | AO136: 0 | AP136: 0 | BA136: 0 | BB136: 0 | BM136: 0 | BN136: 0 | BY136: 0 | BZ136: 0 | CK136: 0 | CL136: 0 | CW136: 0 | CX136: 0 | DI136: 0 | DJ136: 0
A137: 135 | Q137: 0 | R137: 0 | AC137: 0 | AD137: 0 | AO137: 0 | AP137: 0 | BA137: 0 | BB137: 0 | BM137: 0 | BN137: 0 | BY137: 0 | BZ137: 0 | CK137: 0 | CL137: 0 | CW137: 0 | CX137: 0 | DI137: 0 | DJ137: 0
A138: 136 | Q138: 0 | R138: 0 | AC138: 0 | AD138: 0 | AO138: 0 | AP138: 0 | BA138: 0 | BB138: 0 | BM138: 0 | BN138: 0 | BY138: 0 | BZ138: 0 | CK138: 0 | CL138: 0 | CW138: 0 | CX138: 0 | DI138: 0 | DJ138: 0
A139: 137 | Q139: 0 | R139: 0 | AC139: 0 | AD139: 0 | AO139: 0 | AP139: 0 | BA139: 0 | BB139: 0 | BM139: 0 | BN139: 0 | BY139: 0 | BZ139: 0 | CK139: 0 | CL139: 0 | CW139: 0 | CX139: 0 | DI139: 0 | DJ139: 0
A140: 138 | Q140: 0 | R140: 0 | AC140: 0 | AD140: 0 | AO140: 0 | AP140: 0 | BA140: 0 | BB140: 0 | BM140: 0 | BN140: 0 | BY140: 0 | BZ140: 0 | CK140: 0 | CL140: 0 | CW140: 0 | CX140: 0 | DI140: 0 | DJ140: 0
A141: 139 | Q141: 0 | R141: 0 | AC141: 0 | AD141: 0 | AO141: 0 | AP141: 0 | BA141: 0 | BB141: 0 | BM141: 0 | BN141: 0 | BY141: 0 | BZ141: 0 | CK141: 0 | CL141: 0 | CW141: 0 | CX141: 0 | DI141: 0 | DJ141: 0
A142: 140 | Q142: 0 | R142: 0 | AC142: 0 | AD142: 0 | AO142: 0 | AP142: 0 | BA142: 0 | BB142: 0 | BM142: 0 | BN142: 0 | BY142: 0 | BZ142: 0 | CK142: 0 | CL142: 0 | CW142: 0 | CX142: 0 | DI142: 0 | DJ142: 0
A143: 141 | Q143: 0 | R143: 0 | AC143: 0 | AD143: 0 | AO143: 0 | AP143: 0 | BA143: 0 | BB143: 0 | BM143: 0 | BN143: 0 | BY143: 0 | BZ143: 0 | CK143: 0 | CL143: 0 | CW143: 0 | CX143: 0 | DI143: 0 | DJ143: 0
A144: 142 | Q144: 0 | R144: 0 | AC144: 0 | AD144: 0 | AO144: 0 | AP144: 0 | BA144: 0 | BB144: 0 | BM144: 0 | BN144: 0 | BY144: 0 | BZ144: 0 | CK144: 0 | CL144: 0 | CW144: 0 | CX144: 0 | DI144: 0 | DJ144: 0
A145: 143 | Q145: 0 | R145: 0 | AC145: 0 | AD145: 0 | AO145: 0 | AP145: 0 | BA145: 0 | BB145: 0 | BM145: 0 | BN145: 0 | BY145: 0 | BZ145: 0 | CK145: 0 | CL145: 0 | CW145: 0 | CX145: 0 | DI145: 0 | DJ145: 0
A146: 144 | Q146: 0 | R146: 0 | AC146: 0 | AD146: 0 | AO146: 0 | AP146: 0 | BA146: 0 | BB146: 0 | BM146: 0 | BN146: 0 | BY146: 0 | BZ146: 0 | CK146: 0 | CL146: 0 | CW146: 0 | CX146: 0 | DI146: 0 | DJ146: 0
A147: 145 | Q147: 0 | R147: 0 | AC147: 0 | AD147: 0 | AO147: 0 | AP147: 0 | BA147: 0 | BB147: 0 | BM147: 0 | BN147: 0 | BY147: 0 | BZ147: 0 | CK147: 0 | CL147: 0 | CW147: 0 | CX147: 0 | DI147: 0 | DJ147: 0
A148: 146 | Q148: 0 | R148: 0 | AC148: 0 | AD148: 0 | AO148: 0 | AP148: 0 | BA148: 0 | BB148: 0 | BM148: 0 | BN148: 0 | BY148: 0 | BZ148: 0 | CK148: 0 | CL148: 0 | CW148: 0 | CX148: 0 | DI148: 0 | DJ148: 0
A149: 147 | Q149: 0 | R149: 0 | AC149: 0 | AD149: 0 | AO149: 0 | AP149: 0 | BA149: 0 | BB149: 0 | BM149: 0 | BN149: 0 | BY149: 0 | BZ149: 0 | CK149: 0 | CL149: 0 | CW149: 0 | CX149: 0 | DI149: 0 | DJ149: 0
A150: 148 | Q150: 0 | R150: 0 | AC150: 0 | AD150: 0 | AO150: 0 | AP150: 0 | BA150: 0 | BB150: 0 | BM150: 0 | BN150: 0 | BY150: 0 | BZ150: 0 | CK150: 0 | CL150: 0 | CW150: 0 | CX150: 0 | DI150: 0 | DJ150: 0
A151: 149 | Q151: 0 | R151: 0 | AC151: 0 | AD151: 0 | AO151: 0 | AP151: 0 | BA151: 0 | BB151: 0 | BM151: 0 | BN151: 0 | BY151: 0 | BZ151: 0 | CK151: 0 | CL151: 0 | CW151: 0 | CX151: 0 | DI151: 0 | DJ151: 0
A152: 150 | Q152: 0 | R152: 0 | AC152: 0 | AD152: 0 | AO152: 0 | AP152: 0 | BA152: 0 | BB152: 0 | BM152: 0 | BN152: 0 | BY152: 0 | BZ152: 0 | CK152: 0 | CL152: 0 | CW152: 0 | CX152: 0 | DI152: 0 | DJ152: 0
A153: 151 | Q153: 0 | R153: 0 | AC153: 0 | AD153: 0 | AO153: 0 | AP153: 0 | BA153: 0 | BB153: 0 | BM153: 0 | BN153: 0 | BY153: 0 | BZ153: 0 | CK153: 0 | CL153: 0 | CW153: 0 | CX153: 0 | DI153: 0 | DJ153: 0
A154: 152 | Q154: 0 | R154: 0 | AC154: 0 | AD154: 0 | AO154: 0 | AP154: 0 | BA154: 0 | BB154: 0 | BM154: 0 | BN154: 0 | BY154: 0 | BZ154: 0 | CK154: 0 | CL154: 0 | CW154: 0 | CX154: 0 | DI154: 0 | DJ154: 0
A155: 153 | Q155: 0 | R155: 0 | AC155: 0 | AD155: 0 | AO155: 0 | AP155: 0 | BA155: 0 | BB155: 0 | BM155: 0 | BN155: 0 | BY155: 0 | BZ155: 0 | CK155: 0 | CL155: 0 | CW155: 0 | CX155: 0 | DI155: 0 | DJ155: 0
A156: 154 | Q156: 0 | R156: 0 | AC156: 0 | AD156: 0 | AO156: 0 | AP156: 0 | BA156: 0 | BB156: 0 | BM156: 0 | BN156: 0 | BY156: 0 | BZ156: 0 | CK156: 0 | CL156: 0 | CW156: 0 | CX156: 0 | DI156: 0 | DJ156: 0
A157: 155 | Q157: 0 | R157: 0 | AC157: 0 | AD157: 0 | AO157: 0 | AP157: 0 | BA157: 0 | BB157: 0 | BM157: 0 | BN157: 0 | BY157: 0 | BZ157: 0 | CK157: 0 | CL157: 0 | CW157: 0 | CX157: 0 | DI157: 0 | DJ157: 0
A158: 156 | Q158: 0 | R158: 0 | AC158: 0 | AD158: 0 | AO158: 0 | AP158: 0 | BA158: 0 | BB158: 0 | BM158: 0 | BN158: 0 | BY158: 0 | BZ158: 0 | CK158: 0 | CL158: 0 | CW158: 0 | CX158: 0 | DI158: 0 | DJ158: 0
A159: 157 | Q159: 0 | R159: 0 | AC159: 0 | AD159: 0 | AO159: 0 | AP159: 0 | BA159: 0 | BB159: 0 | BM159: 0 | BN159: 0 | BY159: 0 | BZ159: 0 | CK159: 0 | CL159: 0 | CW159: 0 | CX159: 0 | DI159: 0 | DJ159: 0
A160: 158 | Q160: 0 | R160: 0 | AC160: 0 | AD160: 0 | AO160: 0 | AP160: 0 | BA160: 0 | BB160: 0 | BM160: 0 | BN160: 0 | BY160: 0 | BZ160: 0 | CK160: 0 | CL160: 0 | CW160: 0 | CX160: 0 | DI160: 0 | DJ160: 0
A161: 159 | Q161: 0 | R161: 0 | AC161: 0 | AD161: 0 | AO161: 0 | AP161: 0 | BA161: 0 | BB161: 0 | BM161: 0 | BN161: 0 | BY161: 0 | BZ161: 0 | CK161: 0 | CL161: 0 | CW161: 0 | CX161: 0 | DI161: 0 | DJ161: 0
A162: 160 | Q162: 0 | R162: 0 | AC162: 0 | AD162: 0 | AO162: 0 | AP162: 0 | BA162: 0 | BB162: 0 | BM162: 0 | BN162: 0 | BY162: 0 | BZ162: 0 | CK162: 0 | CL162: 0 | CW162: 0 | CX162: 0 | DI162: 0 | DJ162: 0
A163: 161 | Q163: 0 | R163: 0 | AC163: 0 | AD163: 0 | AO163: 0 | AP163: 0 | BA163: 0 | BB163: 0 | BM163: 0 | BN163: 0 | BY163: 0 | BZ163: 0 | CK163: 0 | CL163: 0 | CW163: 0 | CX163: 0 | DI163: 0 | DJ163: 0
A164: 162 | Q164: 0 | R164: 0 | AC164: 0 | AD164: 0 | AO164: 0 | AP164: 0 | BA164: 0 | BB164: 0 | BM164: 0 | BN164: 0 | BY164: 0 | BZ164: 0 | CK164: 0 | CL164: 0 | CW164: 0 | CX164: 0 | DI164: 0 | DJ164: 0
A165: 163 | Q165: 0 | R165: 0 | AC165: 0 | AD165: 0 | AO165: 0 | AP165: 0 | BA165: 0 | BB165: 0 | BM165: 0 | BN165: 0 | BY165: 0 | BZ165: 0 | CK165: 0 | CL165: 0 | CW165: 0 | CX165: 0 | DI165: 0 | DJ165: 0
A166: 164 | Q166: 0 | R166: 0 | AC166: 0 | AD166: 0 | AO166: 0 | AP166: 0 | BA166: 0 | BB166: 0 | BM166: 0 | BN166: 0 | BY166: 0 | BZ166: 0 | CK166: 0 | CL166: 0 | CW166: 0 | CX166: 0 | DI166: 0 | DJ166: 0
A167: 165 | Q167: 0 | R167: 0 | AC167: 0 | AD167: 0 | AO167: 0 | AP167: 0 | BA167: 0 | BB167: 0 | BM167: 0 | BN167: 0 | BY167: 0 | BZ167: 0 | CK167: 0 | CL167: 0 | CW167: 0 | CX167: 0 | DI167: 0 | DJ167: 0
A168: 166 | Q168: 0 | R168: 0 | AC168: 0 | AD168: 0 | AO168: 0 | AP168: 0 | BA168: 0 | BB168: 0 | BM168: 0 | BN168: 0 | BY168: 0 | BZ168: 0 | CK168: 0 | CL168: 0 | CW168: 0 | CX168: 0 | DI168: 0 | DJ168: 0
A169: 167 | Q169: 0 | R169: 0 | AC169: 0 | AD169: 0 | AO169: 0 | AP169: 0 | BA169: 0 | BB169: 0 | BM169: 0 | BN169: 0 | BY169: 0 | BZ169: 0 | CK169: 0 | CL169: 0 | CW169: 0 | CX169: 0 | DI169: 0 | DJ169: 0
A170: 168 | Q170: 0 | R170: 0 | AC170: 0 | AD170: 0 | AO170: 0 | AP170: 0 | BA170: 0 | BB170: 0 | BM170: 0 | BN170: 0 | BY170: 0 | BZ170: 0 | CK170: 0 | CL170: 0 | CW170: 0 | CX170: 0 | DI170: 0 | DJ170: 0
A171: 169 | Q171: 0 | R171: 0 | AC171: 0 | AD171: 0 | AO171: 0 | AP171: 0 | BA171: 0 | BB171: 0 | BM171: 0 | BN171: 0 | BY171: 0 | BZ171: 0 | CK171: 0 | CL171: 0 | CW171: 0 | CX171: 0 | DI171: 0 | DJ171: 0
A172: 170 | Q172: 0 | R172: 0 | AC172: 0 | AD172: 0 | AO172: 0 | AP172: 0 | BA172: 0 | BB172: 0 | BM172: 0 | BN172: 0 | BY172: 0 | BZ172: 0 | CK172: 0 | CL172: 0 | CW172: 0 | CX172: 0 | DI172: 0 | DJ172: 0
A173: 171 | Q173: 0 | R173: 0 | AC173: 0 | AD173: 0 | AO173: 0 | AP173: 0 | BA173: 0 | BB173: 0 | BM173: 0 | BN173: 0 | BY173: 0 | BZ173: 0 | CK173: 0 | CL173: 0 | CW173: 0 | CX173: 0 | DI173: 0 | DJ173: 0
A174: 172 | Q174: 0 | R174: 0 | AC174: 0 | AD174: 0 | AO174: 0 | AP174: 0 | BA174: 0 | BB174: 0 | BM174: 0 | BN174: 0 | BY174: 0 | BZ174: 0 | CK174: 0 | CL174: 0 | CW174: 0 | CX174: 0 | DI174: 0 | DJ174: 0
A175: 173 | Q175: 0 | R175: 0 | AC175: 0 | AD175: 0 | AO175: 0 | AP175: 0 | BA175: 0 | BB175: 0 | BM175: 0 | BN175: 0 | BY175: 0 | BZ175: 0 | CK175: 0 | CL175: 0 | CW175: 0 | CX175: 0 | DI175: 0 | DJ175: 0
A176: 174 | Q176: 0 | R176: 0 | AC176: 0 | AD176: 0 | AO176: 0 | AP176: 0 | BA176: 0 | BB176: 0 | BM176: 0 | BN176: 0 | BY176: 0 | BZ176: 0 | CK176: 0 | CL176: 0 | CW176: 0 | CX176: 0 | DI176: 0 | DJ176: 0
A177: 175 | Q177: 0 | R177: 0 | AC177: 0 | AD177: 0 | AO177: 0 | AP177: 0 | BA177: 0 | BB177: 0 | BM177: 0 | BN177: 0 | BY177: 0 | BZ177: 0 | CK177: 0 | CL177: 0 | CW177: 0 | CX177: 0 | DI177: 0 | DJ177: 0
A178: 176 | Q178: 0 | R178: 0 | AC178: 0 | AD178: 0 | AO178: 0 | AP178: 0 | BA178: 0 | BB178: 0 | BM178: 0 | BN178: 0 | BY178: 0 | BZ178: 0 | CK178: 0 | CL178: 0 | CW178: 0 | CX178: 0 | DI178: 0 | DJ178: 0
A179: 177 | Q179: 0 | R179: 0 | AC179: 0 | AD179: 0 | AO179: 0 | AP179: 0 | BA179: 0 | BB179: 0 | BM179: 0 | BN179: 0 | BY179: 0 | BZ179: 0 | CK179: 0 | CL179: 0 | CW179: 0 | CX179: 0 | DI179: 0 | DJ179: 0
A180: 178 | Q180: 0 | R180: 0 | AC180: 0 | AD180: 0 | AO180: 0 | AP180: 0 | BA180: 0 | BB180: 0 | BM180: 0 | BN180: 0 | BY180: 0 | BZ180: 0 | CK180: 0 | CL180: 0 | CW180: 0 | CX180: 0 | DI180: 0 | DJ180: 0
A181: 179 | Q181: 0 | R181: 0 | AC181: 0 | AD181: 0 | AO181: 0 | AP181: 0 | BA181: 0 | BB181: 0 | BM181: 0 | BN181: 0 | BY181: 0 | BZ181: 0 | CK181: 0 | CL181: 0 | CW181: 0 | CX181: 0 | DI181: 0 | DJ181: 0
A182: 180 | Q182: 0 | R182: 0 | AC182: 0 | AD182: 0 | AO182: 0 | AP182: 0 | BA182: 0 | BB182: 0 | BM182: 0 | BN182: 0 | BY182: 0 | BZ182: 0 | CK182: 0 | CL182: 0 | CW182: 0 | CX182: 0 | DI182: 0 | DJ182: 0
A183: 181 | Q183: 0 | R183: 0 | AC183: 0 | AD183: 0 | AO183: 0 | AP183: 0 | BA183: 0 | BB183: 0 | BM183: 0 | BN183: 0 | BY183: 0 | BZ183: 0 | CK183: 0 | CL183: 0 | CW183: 0 | CX183: 0 | DI183: 0 | DJ183: 0
A184: 182 | Q184: 0 | R184: 0 | AC184: 0 | AD184: 0 | AO184: 0 | AP184: 0 | BA184: 0 | BB184: 0 | BM184: 0 | BN184: 0 | BY184: 0 | BZ184: 0 | CK184: 0 | CL184: 0 | CW184: 0 | CX184: 0 | DI184: 0 | DJ184: 0
A185: 183 | Q185: 0 | R185: 0 | AC185: 0 | AD185: 0 | AO185: 0 | AP185: 0 | BA185: 0 | BB185: 0 | BM185: 0 | BN185: 0 | BY185: 0 | BZ185: 0 | CK185: 0 | CL185: 0 | CW185: 0 | CX185: 0 | DI185: 0 | DJ185: 0
A186: 184 | Q186: 0 | R186: 0 | AC186: 0 | AD186: 0 | AO186: 0 | AP186: 0 | BA186: 0 | BB186: 0 | BM186: 0 | BN186: 0 | BY186: 0 | BZ186: 0 | CK186: 0 | CL186: 0 | CW186: 0 | CX186: 0 | DI186: 0 | DJ186: 0
A187: 185 | Q187: 0 | R187: 0 | AC187: 0 | AD187: 0 | AO187: 0 | AP187: 0 | BA187: 0 | BB187: 0 | BM187: 0 | BN187: 0 | BY187: 0 | BZ187: 0 | CK187: 0 | CL187: 0 | CW187: 0 | CX187: 0 | DI187: 0 | DJ187: 0
A188: 186 | Q188: 0 | R188: 0 | AC188: 0 | AD188: 0 | AO188: 0 | AP188: 0 | BA188: 0 | BB188: 0 | BM188: 0 | BN188: 0 | BY188: 0 | BZ188: 0 | CK188: 0 | CL188: 0 | CW188: 0 | CX188: 0 | DI188: 0 | DJ188: 0
A189: 187 | Q189: 0 | R189: 0 | AC189: 0 | AD189: 0 | AO189: 0 | AP189: 0 | BA189: 0 | BB189: 0 | BM189: 0 | BN189: 0 | BY189: 0 | BZ189: 0 | CK189: 0 | CL189: 0 | CW189: 0 | CX189: 0 | DI189: 0 | DJ189: 0
A190: 188 | Q190: 0 | R190: 0 | AC190: 0 | AD190: 0 | AO190: 0 | AP190: 0 | BA190: 0 | BB190: 0 | BM190: 0 | BN190: 0 | BY190: 0 | BZ190: 0 | CK190: 0 | CL190: 0 | CW190: 0 | CX190: 0 | DI190: 0 | DJ190: 0
A191: 189 | Q191: 0 | R191: 0 | AC191: 0 | AD191: 0 | AO191: 0 | AP191: 0 | BA191: 0 | BB191: 0 | BM191: 0 | BN191: 0 | BY191: 0 | BZ191: 0 | CK191: 0 | CL191: 0 | CW191: 0 | CX191: 0 | DI191: 0 | DJ191: 0
A192: 190 | Q192: 0 | R192: 0 | AC192: 0 | AD192: 0 | AO192: 0 | AP192: 0 | BA192: 0 | BB192: 0 | BM192: 0 | BN192: 0 | BY192: 0 | BZ192: 0 | CK192: 0 | CL192: 0 | CW192: 0 | CX192: 0 | DI192: 0 | DJ192: 0
A193: 191 | Q193: 0 | R193: 0 | AC193: 0 | AD193: 0 | AO193: 0 | AP193: 0 | BA193: 0 | BB193: 0 | BM193: 0 | BN193: 0 | BY193: 0 | BZ193: 0 | CK193: 0 | CL193: 0 | CW193: 0 | CX193: 0 | DI193: 0 | DJ193: 0
A194: 192 | Q194: 0 | R194: 0 | AC194: 0 | AD194: 0 | AO194: 0 | AP194: 0 | BA194: 0 | BB194: 0 | BM194: 0 | BN194: 0 | BY194: 0 | BZ194: 0 | CK194: 0 | CL194: 0 | CW194: 0 | CX194: 0 | DI194: 0 | DJ194: 0
A195: 193 | Q195: 0 | R195: 0 | AC195: 0 | AD195: 0 | AO195: 0 | AP195: 0 | BA195: 0 | BB195: 0 | BM195: 0 | BN195: 0 | BY195: 0 | BZ195: 0 | CK195: 0 | CL195: 0 | CW195: 0 | CX195: 0 | DI195: 0 | DJ195: 0
A196: 194 | Q196: =COUNTIF(G196:P196,">0") -> 0 | R196: =IF(Q196>0,(SUM(G196:P196)/Q196),0) -> 0 | AC196: =COUNTIF(S196:AB196,">0") -> 0 | AD196: =IF(AC196>0,(SUM(S196:AB196)/AC196),0) -> 0 | AO196: =COUNTIF(AE196:AN196,">0") -> 0 | AP196: =IF(AO196>0,(SUM(AE196:AN196)/AO196),0) -> 0 | BA196: =COUNTIF(AQ196:AZ196,">0") -> 0 | BB196: =IF(BA196>0,(SUM(AQ196:AZ196)/BA196),0) -> 0 | BM196: =COUNTIF(BC196:BL196,">0") -> 0 | BN196: =IF(BM196>0,(SUM(BC196:BL196)/BM196),0) -> 0 | BY196: =COUNTIF(BO196:BX196,">0") -> 0 | BZ196: =IF(BY196>0,(SUM(BO196:BX196)/BY196),0) -> 0 | CK196: =COUNTIF(CA196:CJ196,">0") -> 0 | CL196: =IF(CK196>0,(SUM(CA196:CJ196)/CK196),0) -> 0 | CW196: =COUNTIF(CM196:CV196,">0") -> 0 | CX196: =IF(CW196>0,(SUM(CM196:CV196)/CW196),0) -> 0 | DI196: =COUNTIF(CY196:DH196,">0") -> 0 | DJ196: =IF(DI196>0,(SUM(CY196:DH196)/DI196),0) -> 0
A197: 195 | Q197: 0 | R197: 0 | AC197: 0 | AD197: 0 | AO197: 0 | AP197: 0 | BA197: 0 | BB197: 0 | BM197: 0 | BN197: 0 | BY197: 0 | BZ197: 0 | CK197: 0 | CL197: 0 | CW197: 0 | CX197: 0 | DI197: 0 | DJ197: 0
A198: 196 | Q198: 0 | R198: 0 | AC198: 0 | AD198: 0 | AO198: 0 | AP198: 0 | BA198: 0 | BB198: 0 | BM198: 0 | BN198: 0 | BY198: 0 | BZ198: 0 | CK198: 0 | CL198: 0 | CW198: 0 | CX198: 0 | DI198: 0 | DJ198: 0
A199: 197 | Q199: 0 | R199: 0 | AC199: 0 | AD199: 0 | AO199: 0 | AP199: 0 | BA199: 0 | BB199: 0 | BM199: 0 | BN199: 0 | BY199: 0 | BZ199: 0 | CK199: 0 | CL199: 0 | CW199: 0 | CX199: 0 | DI199: 0 | DJ199: 0
A200: 198 | Q200: 0 | R200: 0 | AC200: 0 | AD200: 0 | AO200: 0 | AP200: 0 | BA200: 0 | BB200: 0 | BM200: 0 | BN200: 0 | BY200: 0 | BZ200: 0 | CK200: 0 | CL200: 0 | CW200: 0 | CX200: 0 | DI200: 0 | DJ200: 0
... 362 more rows

Sheet unsur pelyn
A2: =input!H167 -> No. | B2: =input!I167 -> UNSUR PELAYANAN | C2: =input!N167 -> NILAI RATA-RATA
A3: =input!H168 -> U1 | B3: =input!I168 -> Persyaratan | C3: =input!N168 -> 3.363636364
A4: =input!H169 -> U2 | B4: =input!I169 -> Prosedur | C4: =input!N169 -> 3.409090909
A5: =input!H170 -> U3 | B5: =input!I170 -> Waktu pelayanan | C5: =input!N170 -> 3.181818182
A6: =input!H171 -> U4 | B6: =input!I171 -> Biaya / tarif | C6: =input!N171 -> 3.863636364
A7: =input!H172 -> U5 | B7: =input!I172 -> Produk layanan | C7: =input!N172 -> 3.227272727
A8: =input!H173 -> U6 | B8: =input!I173 -> Kompetensi pelaksana | C8: =input!N173 -> 3.318181818
A9: =input!H174 -> U7 | B9: =input!I174 -> Perilaku pelaksana | C9: =input!N174 -> 3.454545455
A10: =input!H175 -> U8 | B10: =input!I175 -> Penanganan Pengaduan, Saran & Masukan | C10: =input!N175 -> 3.272727273
A11: =input!H176 -> U9 | B11: =input!I176 -> Sarana dan Prasarana | C11: =input!N176 -> 4
A12: =input!H177 -> Jumlah Unsur Digunakan : | B12: =input!I177 -> 0 | C12: =input!N177 -> 9
A13: =input!#REF! ->  | B13: =input!H178 -> Total | C13: =input!N178 -> 3.454545455
A14: =input!H179 -> 0 | B14: =input!I179 -> 0 | C14: =input!N179 -> 0
A15: =input!H180 -> 0 | B15: =input!I180 -> 0 | C15: =input!N180 -> 0
A16: =input!H181 -> 0 | B16: =input!I181 -> 0 | C16: =input!N181 -> 0
